Workbook

Sheet Orçamento
O3: UNIDADE ESCOLAR | V3: CÓDIGO INEP
O4: COLÉGIO ESTADUAL DA POLÍCIA MILITAR DE GOIÁS - GOIANIRA - JOSÉ SILVA OLIVEIRA | V4: 52096939
A6: Nmax | M6: Ajustar altura? | O6: OBRA | S6: DATA | V6: CIDADE
A7: =MAX($C$18:$C$521) -> 3 | M7: SIM | O7: REFORMA E AMPLIAÇÃO | S7: 2019-05-21 | V7: GOIANIRA
O9: CRE | R9: ENDEREÇO | V9: REFERÊNCIA AGETOP
O10: INHUMAS | R10: Rua 28 c/ Rua 20 S/N, TRIUNFO I, CEP:75370-000 | V10: DEZ/18 | W10: ONERADA
O12: ÁREA EXISTENTE (M²) | R12: ÁREA A CONSTRUIR (M²) | S12: ÁREA TOTAL CONSTRUÍDA (M²) | V12: REFERÊNCIA SINAPI
O13: 2811.92 | R13: 392.3 | S13: 3204.22 | V13: MAR/19 | W13: ONERADA
L15: FILTRO | O15: PLANILHA ORÇAMENTÁRIA
A16: Nível E | B16: Save Nivel | C16: Nível C | D16: Altura | E16: n1 | F16: n2 | G16: n3 | H16: n4 | I16: n5 | J16: Czero | K16: Cnível | L16: ↓ | M16: Nível | N16: Nível Corrigido | O16: ITEM | P16: TABELA | Q16: CODIGO | R16: DESCRIÇÃO DOS SERVIÇOS | S16: UNID | T16: QUANT | U16: MAT | V16: MO | W16: T.SERVIÇO | X16: OBSERVAÇÕES¹
A17: =CHOOSE(1+LOG(1+2*(ORÇAMENTO.Nivel="Nível 1")+4*(ORÇAMENTO.Nivel="Nível 2")+8*(ORÇAMENTO.Nivel="Nível 3")+16*(ORÇAMENTO.Nivel="Nível 4")+32*(ORÇAMENTO.Nivel="Serviço"),2),0,1,2,3,4,"S") -> S | B17: =IF(OR(C17="s",C17=0),OFFSET(B17,-1,0),C17) -> Save Nivel | C17: =IF(OFFSET(C17,-1,0)="L",1,IF(OFFSET(C17,-1,0)=1,2,IF(OR(A17="s",A17=0),"S",IF(AND(OFFSET(C17,-1,0)=2,A17=4),3,IF(AND(OR(OFFSET(C17,-1,0)="s",OFFSET(C17,-1,0)=0),A17<>"s",A17>OFFSET(B17,-1,0)),OFFSET(B17,-1,0),A17))))) -> S | D17: =IF(OR(C17="S",C17=0),0,IF(ISERROR(K17),J17,SMALL(J17:K17,1))) -> 0 | E17: =IF($C17=1,OFFSET(E17,-1,0)+1,OFFSET(E17,-1,0)) -> n1 | F17: =IF($C17=1,0,IF($C17=2,OFFSET(F17,-1,0)+1,OFFSET(F17,-1,0))) -> n2 | G17: =IF(AND($C17<=2,$C17<>0),0,IF($C17=3,OFFSET(G17,-1,0)+1,OFFSET(G17,-1,0))) -> n3 | H17: =IF(AND($C17<=3,$C17<>0),0,IF($C17=4,OFFSET(H17,-1,0)+1,OFFSET(H17,-1,0))) -> n4 | I17: =IF(AND($C17<=4,$C17<>0),0,IF(AND($C17="S",$W17>0),OFFSET(I17,-1,0)+1,OFFSET(I17,-1,0))) -> n5 | J17: =IF(OR($C17="S",$C17=0),0,MATCH(0,OFFSET($D17,1,$C17,ROW($C$521)-ROW($C17)),0)) -> 0 | K17: =IF(OR($C17="S",$C17=0),0,MATCH(OFFSET($D17,0,$C17)+1,OFFSET($D17,1,$C17,ROW($C$521)-ROW($C17)),0)) -> 0 | M17: Serviço | N17: Serviço | O17: - | P17: SINAPI | R17: (sem código) | S17: - | U17: 0 | V17: 0 | W17: 0
A18: 0 | C18: L | D18: =COUNTA(OFFSET(D18,1,0):D$521) -> 502 | E18: =LEFT(O19,1)-1 -> 0 | L18: F | M18: LOTE | N18: LOTE | O18: REFORMA E AMPLIAÇÃO - COLÉGIO ESTADUAL DA POLÍCIA MILITAR DE GOIÁS - GOIANIRA - JOSÉ SILVA OLIVEIRA | W18: 0
A19: 1 | B19: =IF(OR(C19="s",C19=0),OFFSET(B19,-1,0),C19) -> 1 | C19: =IF(OFFSET(C19,-1,0)="L",1,IF(OFFSET(C19,-1,0)=1,2,IF(OR(A19="s",A19=0),"S",IF(AND(OFFSET(C19,-1,0)=2,A19=4),3,IF(AND(OR(OFFSET(C19,-1,0)="s",OFFSET(C19,-1,0)=0),A19<>"s",A19>OFFSET(B19,-1,0)),OFFSET(B19,-1,0),A19))))) -> 1 | D19: =IF(OR(C19="S",C19=0),0,IF(ISERROR(K19),J19,SMALL(J19:K19,1))) -> 99 | E19: =IF($C19=1,OFFSET(E19,-1,0)+1,OFFSET(E19,-1,0)) -> 1 | F19: =IF($C19=1,0,IF($C19=2,OFFSET(F19,-1,0)+1,OFFSET(F19,-1,0))) -> 0 | G19: =IF(AND($C19<=2,$C19<>0),0,IF($C19=3,OFFSET(G19,-1,0)+1,OFFSET(G19,-1,0))) -> 0 | H19: =IF(AND($C19<=3,$C19<>0),0,IF($C19=4,OFFSET(H19,-1,0)+1,OFFSET(H19,-1,0))) -> 0 | I19: 0 | J19: =IF(OR($C19="S",$C19=0),0,MATCH(0,OFFSET($D19,1,$C19,ROW($C$521)-ROW($C19)),0)) -> 502 | K19: =IF(OR($C19="S",$C19=0),0,MATCH(OFFSET($D19,0,$C19)+1,OFFSET($D19,1,$C19,ROW($C$521)-ROW($C19)),0)) -> 99 | L19: F | M19: Nível 1 | N19: Nível 1 | O19: 1. | P19: AGETOP | R19: REFORMA | W19: 0
A20: 2 | B20: =IF(OR(C20="s",C20=0),OFFSET(B20,-1,0),C20) -> 2 | C20: =IF(OFFSET(C20,-1,0)="L",1,IF(OFFSET(C20,-1,0)=1,2,IF(OR(A20="s",A20=0),"S",IF(AND(OFFSET(C20,-1,0)=2,A20=4),3,IF(AND(OR(OFFSET(C20,-1,0)="s",OFFSET(C20,-1,0)=0),A20<>"s",A20>OFFSET(B20,-1,0)),OFFSET(B20,-1,0),A20))))) -> 2 | D20: =IF(OR(C20="S",C20=0),0,IF(ISERROR(K20),J20,SMALL(J20:K20,1))) -> 9 | E20: =IF($C20=1,OFFSET(E20,-1,0)+1,OFFSET(E20,-1,0)) -> 1 | F20: =IF($C20=1,0,IF($C20=2,OFFSET(F20,-1,0)+1,OFFSET(F20,-1,0))) -> 1 | G20: =IF(AND($C20<=2,$C20<>0),0,IF($C20=3,OFFSET(G20,-1,0)+1,OFFSET(G20,-1,0))) -> 0 | H20: =IF(AND($C20<=3,$C20<>0),0,IF($C20=4,OFFSET(H20,-1,0)+1,OFFSET(H20,-1,0))) -> 0 | I20: 0 | J20: 98 | K20: 9 | M20: Nível 2 | N20: Nível 2 | O20: - | P20: AGETOP | R20: SERVIÇOS PRELIMINARES | W20: 0
A21: S | B21: =IF(OR(C21="s",C21=0),OFFSET(B21,-1,0),C21) -> 2 | C21: =IF(OFFSET(C21,-1,0)="L",1,IF(OFFSET(C21,-1,0)=1,2,IF(OR(A21="s",A21=0),"S",IF(AND(OFFSET(C21,-1,0)=2,A21=4),3,IF(AND(OR(OFFSET(C21,-1,0)="s",OFFSET(C21,-1,0)=0),A21<>"s",A21>OFFSET(B21,-1,0)),OFFSET(B21,-1,0),A21))))) -> S | D21: =IF(OR(C21="S",C21=0),0,IF(ISERROR(K21),J21,SMALL(J21:K21,1))) -> 0 | E21: 1 | F21: 1 | G21: 0 | H21: 0 | I21: 0 | J21: 0 | K21: 0 | M21: Serviço | N21: Serviço | O21: - | P21: SINAPI | Q21: 97645 | R21: REMOÇÃO DE JANELAS, DE FORMA MANUAL, SEM REAPROVEITAMENTO. AF_12/2017 | S21: M2 | T21: 54.41 | W21: 0 | X21: Referência: AGETOP - 20106
A22: S | B22: 2 | C22: S | D22: 0 | E22: 1 | F22: 1 | G22: 0 | H22: 0 | I22: 0 | J22: 0 | K22: 0 | M22: Serviço | N22: Serviço | O22: - | P22: SINAPI | Q22: 97644 | R22: REMOÇÃO DE PORTAS, DE FORMA MANUAL, SEM REAPROVEITAMENTO. AF_12/2017 | S22: M2 | T22: 2.1 | W22: 0 | X22: Referência: AGETOP - 20106
A23: S | B23: 2 | C23: S | D23: 0 | E23: 1 | F23: 1 | G23: 0 | H23: 0 | I23: 0 | J23: 0 | K23: 0 | M23: Serviço | N23: Serviço | O23: - | P23: AGETOP | Q23: 20121 | R23: DEM. MANUAL EM CONCR.SIMPLES C/TR.ATE CB.E CARGA (O.C.) | S23: m3 | T23: 12.13 | W23: 0
A24: S | B24: 2 | C24: S | D24: 0 | E24: 1 | F24: 1 | G24: 0 | H24: 0 | I24: 0 | J24: 0 | K24: 0 | M24: Serviço | N24: Serviço | O24: - | P24: AGETOP | Q24: 20118 | R24: DEM.ALVEN.TIJOLO S/REAP. C/TR.ATE CB. E CARGA | S24: m3 | T24: 1.3 | W24: 0
A25: S | B25: 2 | C25: S | D25: 0 | E25: 1 | F25: 1 | G25: 0 | H25: 0 | I25: 0 | J25: 0 | K25: 0 | M25: Serviço | N25: Serviço | O25: - | P25: AGETOP | Q25: 20163 | R25: DEMOLIÇÃO DAS INSTALAÇÕES HIDROSANITÁRIAS E AFINS C/ TRANSP. ATÉ CB. E CARGA | S25: H | T25: 2 | W25: 0
A26: S | B26: 2 | C26: S | D26: 0 | E26: 1 | F26: 1 | G26: 0 | H26: 0 | I26: 0 | J26: =IF(OR($C26="S",$C26=0),0,MATCH(0,OFFSET($D26,1,$C26,ROW($C$521)-ROW($C26)),0)) -> 0 | K26: =IF(OR($C26="S",$C26=0),0,MATCH(OFFSET($D26,0,$C26)+1,OFFSET($D26,1,$C26,ROW($C$521)-ROW($C26)),0)) -> 0 | M26: Serviço | N26: Serviço | O26: - | P26: AGETOP | Q26: 260104 | R26: REMOCAO DE PINTURA ANTIGA A LATEX | S26: m2 | T26: 4 | W26: 0
A27: S | B27: 2 | C27: S | D27: 0 | E27: 1 | F27: 1 | G27: 0 | H27: 0 | I27: 0 | J27: =IF(OR($C27="S",$C27=0),0,MATCH(0,OFFSET($D27,1,$C27,ROW($C$521)-ROW($C27)),0)) -> 0 | K27: =IF(OR($C27="S",$C27=0),0,MATCH(OFFSET($D27,0,$C27)+1,OFFSET($D27,1,$C27,ROW($C$521)-ROW($C27)),0)) -> 0 | M27: Serviço | N27: Serviço | O27: - | P27: AGETOP | Q27: 20162 | R27: DEMOLIÇÃO DAS INSTALAÇÕES ELÉTRICAS E AFINS C/ TRANSP. ATÉ CB. E CARGA | S27: H | T27: 4 | W27: 0
A28: S | B28: 2 | C28: S | D28: 0 | E28: 1 | F28: 1 | G28: 0 | H28: 0 | I28: 0 | J28: 0 | K28: 0 | M28: Serviço | N28: Serviço | O28: - | P28: SINAPI | Q28: 74209/1 | R28: PLACA DE OBRA EM CHAPA DE ACO GALVANIZADO | S28: M2 | T28: 4.5 | W28: 0 | X28: Referência: AGETOP - 21301
A29: 2 | B29: 2 | C29: 2 | D29: 3 | E29: 1 | F29: 2 | G29: 0 | H29: 0 | I29: 0 | J29: 89 | K29: 3 | M29: Nível 2 | N29: Nível 2 | O29: - | P29: AGETOP | R29: TRANSPORTES | S29: - | W29: 0
A30: S | B30: 2 | C30: S | D30: 0 | E30: 1 | F30: 2 | G30: 0 | H30: 0 | I30: 0 | J30: 0 | K30: 0 | M30: Serviço | N30: Serviço | O30: - | P30: SINAPI | Q30: 72900 | R30: TRANSPORTE DE ENTULHO COM CAMINHAO BASCULANTE 6 M3, RODOVIA PAVIMENTADA, DMT 0,5 A 1,0 KM | S30: M3 | T30: 25.13 | W30: 0
A31: S | B31: 2 | C31: S | D31: 0 | E31: 1 | F31: 2 | G31: 0 | H31: 0 | I31: 0 | J31: 0 | K31: 0 | M31: Serviço | N31: Serviço | O31: - | P31: SINAPI | Q31: 72897 | R31: CARGA MANUAL DE ENTULHO EM CAMINHAO BASCULANTE 6 M3 | S31: M3 | T31: 25.13 | W31: 0
A32: 2 | B32: 2 | C32: 2 | D32: 5 | E32: 1 | F32: 3 | G32: 0 | H32: 0 | I32: 0 | J32: 86 | K32: 5 | M32: Nível 2 | N32: Nível 2 | O32: - | P32: AGETOP | R32: SERVIÇO EM TERRA | S32: - | W32: 0
A33: S | B33: 2 | C33: S | D33: 0 | E33: 1 | F33: 3 | G33: 0 | H33: 0 | I33: 0 | J33: 0 | K33: 0 | M33: Serviço | N33: Serviço | O33: - | P33: SINAPI | Q33: 93358 | R33: ESCAVAÇÃO MANUAL DE VALA COM PROFUNDIDADE MENOR OU IGUAL A 1,30 M. AF_03/2016 | S33: M3 | T33: 25 | W33: 0 | X33: Referência: AGETOP - 40101
A34: S | B34: 2 | C34: S | D34: 0 | E34: 1 | F34: 3 | G34: 0 | H34: 0 | I34: 0 | J34: 0 | K34: 0 | M34: Serviço | N34: Serviço | O34: - | P34: SINAPI | Q34: 96995 | R34: REATERRO MANUAL APILOADO COM SOQUETE. AF_10/2017 | S34: M3 | T34: 25 | W34: 0 | X34: Referência: AGETOP - 40902
A35: =CHOOSE(1+LOG(1+2*(ORÇAMENTO.Nivel="Nível 1")+4*(ORÇAMENTO.Nivel="Nível 2")+8*(ORÇAMENTO.Nivel="Nível 3")+16*(ORÇAMENTO.Nivel="Nível 4")+32*(ORÇAMENTO.Nivel="Serviço"),2),0,1,2,3,4,"S") -> S | B35: 2 | C35: S | D35: 0 | E35: =IF($C35=1,OFFSET(E35,-1,0)+1,OFFSET(E35,-1,0)) -> 1 | F35: =IF($C35=1,0,IF($C35=2,OFFSET(F35,-1,0)+1,OFFSET(F35,-1,0))) -> 3 | G35: =IF(AND($C35<=2,$C35<>0),0,IF($C35=3,OFFSET(G35,-1,0)+1,OFFSET(G35,-1,0))) -> 0 | H35: =IF(AND($C35<=3,$C35<>0),0,IF($C35=4,OFFSET(H35,-1,0)+1,OFFSET(H35,-1,0))) -> 0 | I35: =IF(AND($C35<=4,$C35<>0),0,IF(AND($C35="S",$W35>0),OFFSET(I35,-1,0)+1,OFFSET(I35,-1,0))) -> 0 | J35: 0 | K35: 0 | M35: Serviço | N35: Serviço | O35: - | P35: SINAPI | Q35: 74005/1 | R35: COMPACTACAO MECANICA, SEM CONTROLE DO GC (C/COMPACTADOR PLACA 400 KG) | S35: M3 | T35: 78.46 | W35: 0 | X35: Referência: AGETOP - 41009
A36: S | B36: 2 | C36: S | D36: 0 | E36: 1 | F36: 3 | G36: 0 | H36: 0 | I36: 0 | J36: 0 | K36: 0 | M36: Serviço | N36: Serviço | O36: - | P36: AGETOP | Q36: 41140 | R36: REGULARIZAÇÃO DO TERRENO SEM APILOAMENTO COM TRANSPORTE MANUAL DA TERRA ESCAVADA | S36: m2 | T36: 392.3 | W36: 0
A37: =CHOOSE(1+LOG(1+2*(ORÇAMENTO.Nivel="Nível 1")+4*(ORÇAMENTO.Nivel="Nível 2")+8*(ORÇAMENTO.Nivel="Nível 3")+16*(ORÇAMENTO.Nivel="Nível 4")+32*(ORÇAMENTO.Nivel="Serviço"),2),0,1,2,3,4,"S") -> 2 | B37: =IF(OR(C37="s",C37=0),OFFSET(B37,-1,0),C37) -> 2 | C37: =IF(OFFSET(C37,-1,0)="L",1,IF(OFFSET(C37,-1,0)=1,2,IF(OR(A37="s",A37=0),"S",IF(AND(OFFSET(C37,-1,0)=2,A37=4),3,IF(AND(OR(OFFSET(C37,-1,0)="s",OFFSET(C37,-1,0)=0),A37<>"s",A37>OFFSET(B37,-1,0)),OFFSET(B37,-1,0),A37))))) -> 2 | D37: =IF(OR(C37="S",C37=0),0,IF(ISERROR(K37),J37,SMALL(J37:K37,1))) -> 14 | E37: =IF($C37=1,OFFSET(E37,-1,0)+1,OFFSET(E37,-1,0)) -> 1 | F37: =IF($C37=1,0,IF($C37=2,OFFSET(F37,-1,0)+1,OFFSET(F37,-1,0))) -> 4 | G37: =IF(AND($C37<=2,$C37<>0),0,IF($C37=3,OFFSET(G37,-1,0)+1,OFFSET(G37,-1,0))) -> 0 | H37: =IF(AND($C37<=3,$C37<>0),0,IF($C37=4,OFFSET(H37,-1,0)+1,OFFSET(H37,-1,0))) -> 0 | I37: =IF(AND($C37<=4,$C37<>0),0,IF(AND($C37="S",$W37>0),OFFSET(I37,-1,0)+1,OFFSET(I37,-1,0))) -> 0 | J37: 81 | K37: 14 | M37: Nível 2 | N37: Nível 2 | O37: - | R37: INSTALAÇÕES ELÉTRICAS | S37: - | W37: 0
A38: S | B38: 2 | C38: S | D38: 0 | E38: 1 | F38: 4 | G38: 0 | H38: 0 | I38: 0 | J38: 0 | K38: 0 | M38: Serviço | N38: Serviço | O38: - | P38: SINAPI | Q38: 92980 | R38: CABO DE COBRE FLEXÍVEL ISOLADO, 10 MM², ANTI-CHAMA 0,6/1,0 KV, PARA DISTRIBUIÇÃO - FORNECIMENTO E INSTALAÇÃO. AF_12/2015 | S38: M | T38: 275 | W38: 0
A39: S | B39: 2 | C39: S | D39: 0 | E39: 1 | F39: 4 | G39: 0 | H39: 0 | I39: 0 | J39: 0 | K39: 0 | M39: Serviço | N39: Serviço | O39: - | P39: SINAPI | Q39: 91931 | R39: CABO DE COBRE FLEXÍVEL ISOLADO, 6 MM², ANTI-CHAMA 0,6/1,0 KV, PARA CIRCUITOS TERMINAIS - FORNECIMENTO E INSTALAÇÃO. AF_12/2015 | S39: M | T39: 250 | W39: 0 | X39: Referência: AGETOP - 70583
A40: S | B40: 2 | C40: S | D40: 0 | E40: 1 | F40: 4 | G40: 0 | H40: 0 | I40: 0 | J40: 0 | K40: 0 | M40: Serviço | N40: Serviço | O40: - | P40: SINAPI | Q40: 91929 | R40: CABO DE COBRE FLEXÍVEL ISOLADO, 4 MM², ANTI-CHAMA 0,6/1,0 KV, PARA CIRCUITOS TERMINAIS - FORNECIMENTO E INSTALAÇÃO. AF_12/2015 | S40: M | T40: 225 | W40: 0 | X40: Referência: AGETOP - 70582
A41: S | B41: 2 | C41: S | D41: 0 | E41: 1 | F41: 4 | G41: 0 | H41: 0 | I41: 0 | J41: 0 | K41: 0 | M41: Serviço | N41: Serviço | O41: - | P41: SINAPI | Q41: 97893 | R41: CAIXA ENTERRADA ELÉTRICA RETANGULAR, EM ALVENARIA COM BLOCOS DE CONCRETO, FUNDO COM BRITA, DIMENSÕES INTERNAS: 0,8X0,8X0,6 M. AF_05/2018 | S41: UN | T41: 6 | W41: 0
A42: S | B42: 2 | C42: S | D42: 0 | E42: 1 | F42: 4 | G42: 0 | H42: 0 | I42: 0 | J42: 0 | K42: 0 | M42: Serviço | N42: Serviço | O42: - | P42: SINAPI | Q42: 93673 | R42: DISJUNTOR TRIPOLAR TIPO DIN, CORRENTE NOMINAL DE 50A - FORNECIMENTO E INSTALAÇÃO. AF_04/2016 | S42: UN | T42: 2 | W42: 0 | X42: Referência: AGETOP - 71174
A43: S | B43: 2 | C43: S | D43: 0 | E43: 1 | F43: 4 | G43: 0 | H43: 0 | I43: 0 | J43: 0 | K43: 0 | M43: Serviço | N43: Serviço | O43: - | P43: SINAPI | Q43: 93671 | R43: DISJUNTOR TRIPOLAR TIPO DIN, CORRENTE NOMINAL DE 32A - FORNECIMENTO E INSTALAÇÃO. AF_04/2016 | S43: UN | T43: 2 | W43: 0 | X43: Referência: AGETOP - 71173
A44: S | B44: 2 | C44: S | D44: 0 | E44: 1 | F44: 4 | G44: 0 | H44: 0 | I44: 0 | J44: 0 | K44: 0 | M44: Serviço | N44: Serviço | O44: - | P44: SINAPI | Q44: 93670 | R44: DISJUNTOR TRIPOLAR TIPO DIN, CORRENTE NOMINAL DE 25A - FORNECIMENTO E INSTALAÇÃO. AF_04/2016 | S44: UN | T44: 2 | W44: 0
A45: S | B45: 2 | C45: S | D45: 0 | E45: 1 | F45: 4 | G45: 0 | H45: 0 | I45: 0 | J45: 0 | K45: 0 | M45: Serviço | N45: Serviço | O45: - | P45: SINAPI | Q45: 93008 | R45: ELETRODUTO RÍGIDO ROSCÁVEL, PVC, DN 50 MM (1 1/2") - FORNECIMENTO E INSTALAÇÃO. AF_12/2015 | S45: M | T45: 105 | W45: 0
A46: S | B46: 2 | C46: S | D46: 0 | E46: 1 | F46: 4 | G46: 0 | H46: 0 | I46: 0 | J46: 0 | K46: 0 | M46: Serviço | N46: Serviço | O46: - | P46: SINAPI | Q46: 91872 | R46: ELETRODUTO RÍGIDO ROSCÁVEL, PVC, DN 32 MM (1"), PARA CIRCUITOS TERMINAIS, INSTALADO EM PAREDE - FORNECIMENTO E INSTALAÇÃO. AF_12/2015 | S46: M | T46: 45 | W46: 0 | X46: Referência: AGETOP - 71202
A47: S | B47: 2 | C47: S | D47: 0 | E47: 1 | F47: 4 | G47: 0 | H47: 0 | I47: 0 | J47: 0 | K47: 0 | M47: Serviço | N47: Serviço | O47: - | P47: AGETOP | Q47: 71321 | R47: FITA DE AUTO FUSAO, ROLO E 10,00 MM | S47: Un | T47: 1 | W47: 0
A48: S | B48: 2 | C48: S | D48: 0 | E48: 1 | F48: 4 | G48: 0 | H48: 0 | I48: 0 | J48: 0 | K48: 0 | M48: Serviço | N48: Serviço | O48: - | P48: AGETOP | Q48: 71331 | R48: FITA ISOLANTE, ROLO DE 20,00 M | S48: Un | T48: 5 | W48: 0
A49: S | B49: 2 | C49: S | D49: 0 | E49: 1 | F49: 4 | G49: 0 | H49: 0 | I49: 0 | J49: 0 | K49: 0 | M49: Serviço | N49: Serviço | O49: - | P49: SINAPI | Q49: 83463 | R49: QUADRO DE DISTRIBUICAO DE ENERGIA EM CHAPA DE ACO GALVANIZADO, PARA 12 DISJUNTORES TERMOMAGNETICOS MONOPOLARES, COM BARRAMENTO TRIFASICO E NEUTRO - FORNECIMENTO E INSTALACAO | S49: UN | T49: 1 | W49: 0
A50: S | B50: 2 | C50: S | D50: 0 | E50: 1 | F50: 4 | G50: 0 | H50: 0 | I50: 0 | J50: 0 | K50: 0 | M50: Serviço | N50: Serviço | O50: - | P50: SINAPI | Q50: 74131/4 | R50: QUADRO DE DISTRIBUICAO DE ENERGIA DE EMBUTIR, EM CHAPA METALICA, PARA 18 DISJUNTORES TERMOMAGNETICOS MONOPOLARES, COM BARRAMENTO TRIFASICO E NEUTRO, FORNECIMENTO E INSTALACAO | S50: UN | T50: 2 | W50: 0
A51: =CHOOSE(1+LOG(1+2*(ORÇAMENTO.Nivel="Nível 1")+4*(ORÇAMENTO.Nivel="Nível 2")+8*(ORÇAMENTO.Nivel="Nível 3")+16*(ORÇAMENTO.Nivel="Nível 4")+32*(ORÇAMENTO.Nivel="Serviço"),2),0,1,2,3,4,"S") -> 2 | B51: =IF(OR(C51="s",C51=0),OFFSET(B51,-1,0),C51) -> 2 | C51: =IF(OFFSET(C51,-1,0)="L",1,IF(OFFSET(C51,-1,0)=1,2,IF(OR(A51="s",A51=0),"S",IF(AND(OFFSET(C51,-1,0)=2,A51=4),3,IF(AND(OR(OFFSET(C51,-1,0)="s",OFFSET(C51,-1,0)=0),A51<>"s",A51>OFFSET(B51,-1,0)),OFFSET(B51,-1,0),A51))))) -> 2 | D51: =IF(OR(C51="S",C51=0),0,IF(ISERROR(K51),J51,SMALL(J51:K51,1))) -> 7 | E51: =IF($C51=1,OFFSET(E51,-1,0)+1,OFFSET(E51,-1,0)) -> 1 | F51: =IF($C51=1,0,IF($C51=2,OFFSET(F51,-1,0)+1,OFFSET(F51,-1,0))) -> 5 | G51: =IF(AND($C51<=2,$C51<>0),0,IF($C51=3,OFFSET(G51,-1,0)+1,OFFSET(G51,-1,0))) -> 0 | H51: =IF(AND($C51<=3,$C51<>0),0,IF($C51=4,OFFSET(H51,-1,0)+1,OFFSET(H51,-1,0))) -> 0 | I51: =IF(AND($C51<=4,$C51<>0),0,IF(AND($C51="S",$W51>0),OFFSET(I51,-1,0)+1,OFFSET(I51,-1,0))) -> 0 | J51: 67 | K51: 7 | M51: Nível 2 | N51: Nível 2 | O51: - | P51: AGETOP | R51: INSTALAÇÕES HIDROSSANITÁRIAS | S51: - | W51: 0
A52: S | B52: 2 | C52: S | D52: 0 | E52: 1 | F52: 5 | G52: 0 | H52: 0 | I52: 0 | J52: 0 | K52: 0 | M52: Serviço | N52: Serviço | O52: - | P52: AGETOP | Q52: 81825 | R52: CAIXA DE PASSAGEM 60 X 60 CM SEM TAMPA | S52: Un | T52: 4 | W52: 0
A53: S | B53: 2 | C53: S | D53: 0 | E53: 1 | F53: 5 | G53: 0 | H53: 0 | I53: 0 | J53: =IF(OR($C53="S",$C53=0),0,MATCH(0,OFFSET($D53,1,$C53,ROW($C$521)-ROW($C53)),0)) -> 0 | K53: =IF(OR($C53="S",$C53=0),0,MATCH(OFFSET($D53,0,$C53)+1,OFFSET($D53,1,$C53,ROW($C$521)-ROW($C53)),0)) -> 0 | M53: Serviço | N53: Serviço | O53: - | P53: SINAPI | Q53: 6171 | R53: TAMPA DE CONCRETO ARMADO 60X60X5CM PARA CAIXA | S53: UN | T53: 4 | W53: 0
A54: S | B54: 2 | C54: S | D54: 0 | E54: 1 | F54: 5 | G54: 0 | H54: 0 | I54: 0 | J54: 0 | K54: 0 | M54: Serviço | N54: Serviço | O54: - | P54: AGETOP | Q54: 81501 | R54: ADESIVO PLASTICO - FRASCO 850 G | S54: Un | T54: 1 | W54: 0
A55: S | B55: 2 | C55: S | D55: 0 | E55: 1 | F55: 5 | G55: 0 | H55: 0 | I55: 0 | J55: 0 | K55: 0 | M55: Serviço | N55: Serviço | O55: - | P55: AGETOP | Q55: 81504 | R55: SOLUCAO LIMPADORA 1000 CM3 | S55: Un | T55: 1 | W55: 0
A56: S | B56: 2 | C56: S | D56: 0 | E56: 1 | F56: 5 | G56: 0 | H56: 0 | I56: 0 | J56: 0 | K56: 0 | M56: Serviço | N56: Serviço | O56: - | P56: SINAPI | Q56: 89778 | R56: LUVA SIMPLES, PVC, SERIE NORMAL, ESGOTO PREDIAL, DN 100 MM, JUNTA ELÁSTICA, FORNECIDO E INSTALADO EM RAMAL DE DESCARGA OU RAMAL DE ESGOTO SANITÁRIO. AF_12/2014 | S56: UN | T56: 6 | W56: 0 | X56: Referência: AGETOP - 82004
A57: S | B57: 2 | C57: S | D57: 0 | E57: 1 | F57: 5 | G57: 0 | H57: 0 | I57: 0 | J57: 0 | K57: 0 | M57: Serviço | N57: Serviço | O57: - | P57: SINAPI | Q57: 89800 | R57: TUBO PVC, SERIE NORMAL, ESGOTO PREDIAL, DN 100 MM, FORNECIDO E INSTALADO EM PRUMADA DE ESGOTO SANITÁRIO OU VENTILAÇÃO. AF_12/2014 | S57: M | T57: 48 | W57: 0
A58: 2 | B58: 2 | C58: 2 | D58: 38 | E58: 1 | F58: 6 | G58: 0 | H58: 0 | I58: 0 | J58: 60 | K58: 38 | M58: Nível 2 | N58: Nível 2 | O58: - | P58: SINAPI | R58: INSTALAÇÕES ESPECIAIS | S58: - | W58: 0
A59: S | B59: 2 | C59: S | D59: 0 | E59: 1 | F59: 6 | G59: 0 | H59: 0 | I59: 0 | J59: 0 | K59: 0 | M59: Serviço | N59: Serviço | O59: - | P59: AGETOP | Q59: 72338 | R59: SIRENE METALICA ALCANCE 500 M | S59: Un | T59: 1 | W59: 0
A60: S | B60: 2 | C60: S | D60: 0 | E60: 1 | F60: 6 | G60: 0 | H60: 0 | I60: 0 | J60: 0 | K60: 0 | M60: Serviço | N60: Serviço | O60: - | P60: AGETOP | Q60: 81882 | R60: RES.METALICO TAÇA AÇO PATINÁVEL-V=15M3-COL.SEC.H=6M+FUNDAÇÃO+LOGOTIPO | S60: Un | T60: 1 | W60: 0
A61: S | B61: 2 | C61: S | D61: 0 | E61: 1 | F61: 6 | G61: 0 | H61: 0 | I61: 0 | J61: 0 | K61: 0 | M61: Serviço | N61: Serviço | O61: - | P61: AGETOP | Q61: 80910 | R61: REGISTRO DE GAVETA BRUTO DIAMETRO 2.1/2" | S61: Un | T61: 2 | W61: 0
A62: S | B62: 2 | C62: S | D62: 0 | E62: 1 | F62: 6 | G62: 0 | H62: 0 | I62: 0 | J62: 0 | K62: 0 | M62: Serviço | N62: Serviço | O62: - | P62: AGETOP | Q62: 82379 | R62: TUBO FERRO GALVANIZADO DIAM.2.1/2" | S62: m | T62: 280 | W62: 0
A63: S | B63: 2 | C63: S | D63: 0 | E63: 1 | F63: 6 | G63: 0 | H63: 0 | I63: 0 | J63: 0 | K63: 0 | M63: Serviço | N63: Serviço | O63: - | P63: AGETOP | Q63: 85003 | R63: EXTINTOR PO QUIMICO SECO (6 KG) - CAPACIDADE EXTINTORA 20 BC | S63: Un | T63: 2 | W63: 0
A64: S | B64: 2 | C64: S | D64: 0 | E64: 1 | F64: 6 | G64: 0 | H64: 0 | I64: 0 | J64: 0 | K64: 0 | M64: Serviço | N64: Serviço | O64: - | P64: AGETOP | Q64: 85005 | R64: EXTINTOR AGUA PRESSURIZADA (10 LITROS) - CAPACIDADE EXTINTORA 2A | S64: Un | T64: 4 | W64: 0
A65: S | B65: 2 | C65: S | D65: 0 | E65: 1 | F65: 6 | G65: 0 | H65: 0 | I65: 0 | J65: 0 | K65: 0 | M65: Serviço | N65: Serviço | O65: - | P65: AGETOP | Q65: 85006 | R65: EXTINTOR MULTI USO EM PO A B C (6 KG) - CAPACIDADE EXTINTORA 3A 20BC | S65: un | T65: 6 | W65: 0
A66: S | B66: 2 | C66: S | D66: 0 | E66: 1 | F66: 6 | G66: 0 | H66: 0 | I66: 0 | J66: 0 | K66: 0 | M66: Serviço | N66: Serviço | O66: - | P66: AGETOP | Q66: 85011 | R66: CAIXA DE INCÊNDIO METÁLICA COM SUPORTE PARA MANGUEIRA, TAMPA E MURETA 17X60X90 CM C/PINTURA | S66: Un | T66: 6 | W66: 0
A67: S | B67: 2 | C67: S | D67: 0 | E67: 1 | F67: 6 | G67: 0 | H67: 0 | I67: 0 | J67: 0 | K67: 0 | M67: Serviço | N67: Serviço | O67: - | P67: AGETOP | Q67: 85017 | R67: MANGUEIRA DE INCÊNDIO D.I. = 38 MM TIPO 2 COMP. = 15 M | S67: CJ | T67: 12 | W67: 0
A68: S | B68: 2 | C68: S | D68: 0 | E68: 1 | F68: 6 | G68: 0 | H68: 0 | I68: 0 | J68: 0 | K68: 0 | M68: Serviço | N68: Serviço | O68: - | P68: AGETOP | Q68: 85025 | R68: ESGUICHO REGULÁVEL 1.1/2" | S68: Un | T68: 6 | W68: 0
A69: S | B69: 2 | C69: S | D69: 0 | E69: 1 | F69: 6 | G69: 0 | H69: 0 | I69: 0 | J69: 0 | K69: 0 | M69: Serviço | N69: Serviço | O69: - | P69: AGETOP | Q69: 85027 | R69: ADAPTADOR P/ENGATE STORZ 2.1/2" X 1.1/2" | S69: Un | T69: 8 | W69: 0
A70: S | B70: 2 | C70: S | D70: 0 | E70: 1 | F70: 6 | G70: 0 | H70: 0 | I70: 0 | J70: 0 | K70: 0 | M70: Serviço | N70: Serviço | O70: - | P70: AGETOP | Q70: 85031 | R70: REGISTRO GLOBO ANGULAR 2.1/2" | S70: Un | T70: 6 | W70: 0
A71: S | B71: 2 | C71: S | D71: 0 | E71: 1 | F71: 6 | G71: 0 | H71: 0 | I71: 0 | J71: 0 | K71: 0 | M71: Serviço | N71: Serviço | O71: - | P71: AGETOP | Q71: 85035 | R71: TAMPÃO CEGO COM CORRENTE 2.1/2" | S71: Un | T71: 1 | W71: 0
A72: S | B72: 2 | C72: S | D72: 0 | E72: 1 | F72: 6 | G72: 0 | H72: 0 | I72: 0 | J72: 0 | K72: 0 | M72: Serviço | N72: Serviço | O72: - | P72: AGETOP | Q72: 85037 | R72: TANQUE DE PRESSÃO DE 10 L | S72: Un | T72: 1 | W72: 0
A73: S | B73: 2 | C73: S | D73: 0 | E73: 1 | F73: 6 | G73: 0 | H73: 0 | I73: 0 | J73: 0 | K73: 0 | M73: Serviço | N73: Serviço | O73: - | P73: AGETOP | Q73: 85039 | R73: PRESSOSTATO 50 A 80 PSI | S73: Un | T73: 1 | W73: 0
A74: S | B74: 2 | C74: S | D74: 0 | E74: 1 | F74: 6 | G74: 0 | H74: 0 | I74: 0 | J74: 0 | K74: 0 | M74: Serviço | N74: Serviço | O74: - | P74: AGETOP | Q74: 85041 | R74: MANOMETRO - 0 A 10 KG/CM2 | S74: Un | T74: 1 | W74: 0
A75: S | B75: 2 | C75: S | D75: 0 | E75: 1 | F75: 6 | G75: 0 | H75: 0 | I75: 0 | J75: 0 | K75: 0 | M75: Serviço | N75: Serviço | O75: - | P75: AGETOP | Q75: 85047 | R75: NIPLE DUPLO FERRO GALVANIZADO 2.1/2" | S75: Un | T75: 6 | W75: 0
A76: S | B76: 2 | C76: S | D76: 0 | E76: 1 | F76: 6 | G76: 0 | H76: 0 | I76: 0 | J76: 0 | K76: 0 | M76: Serviço | N76: Serviço | O76: - | P76: AGETOP | Q76: 85077 | R76: VÁLVULA DE RETENÇÃO HORIZONTAL 2.1/2" | S76: Un | T76: 2 | W76: 0
A77: S | B77: 2 | C77: S | D77: 0 | E77: 1 | F77: 6 | G77: 0 | H77: 0 | I77: 0 | J77: 0 | K77: 0 | M77: Serviço | N77: Serviço | O77: - | P77: COMPOSIÇÃO | Q77: COMP 017_SEE | R77: REDUCAO GIRATÓRIA TIPO STORZ LATAO P/ INST. PREDIAL COMBATE A INCENDIO ENGATE RAPIDO 2.1/2" X 1.1/2" | S77: UN | T77: 6 | W77: 0
A78: S | B78: 2 | C78: S | D78: 0 | E78: 1 | F78: 6 | G78: 0 | H78: 0 | I78: 0 | J78: 0 | K78: 0 | M78: Serviço | N78: Serviço | O78: - | P78: COMPOSIÇÃO | Q78: COMP 018_SEE | R78: CHAVE DUPLA P/ CONEXÕES TIPO STORZ EM LATÃO ENGATE RÁPIDO 1 1/2" X 2 1/2" | S78: UN | T78: 6 | W78: 0
A79: S | B79: 2 | C79: S | D79: 0 | E79: 1 | F79: 6 | G79: 0 | H79: 0 | I79: 0 | J79: 0 | K79: 0 | M79: Serviço | N79: Serviço | O79: - | P79: COMPOSIÇÃO | Q79: COMP 087_SEE | R79: REGISTRO DE GAVETA COM HASTE ASCENDENTE DE BRONZE 2 1/2" | S79: UN | T79: 1 | W79: 0
A80: S | B80: 2 | C80: S | D80: 0 | E80: 1 | F80: 6 | G80: 0 | H80: 0 | I80: 0 | J80: 0 | K80: 0 | M80: Serviço | N80: Serviço | O80: - | P80: COMPOSIÇÃO | Q80: COMP 019_SEE | R80: TAMPÃO LATAO C/ CORRENTE P/ INSTALAÇÃO PREDIAL COMBATE A INCÊNDIO ENGATE RÁPIDO 1 1/2" | S80: UN | T80: 6 | W80: 0
A81: S | B81: 2 | C81: S | D81: 0 | E81: 1 | F81: 6 | G81: 0 | H81: 0 | I81: 0 | J81: 0 | K81: 0 | M81: Serviço | N81: Serviço | O81: - | P81: AGETOP | Q81: 80981 | R81: REGISTRO DE ESFERA DIAMETRO 2.1/2" | S81: Un | T81: 2 | W81: 0
A82: S | B82: 2 | C82: S | D82: 0 | E82: 1 | F82: 6 | G82: 0 | H82: 0 | I82: 0 | J82: 0 | K82: 0 | M82: Serviço | N82: Serviço | O82: - | P82: AGETOP | Q82: 85056 | R82: TÊ DE FERRO GALVANIZADO 90º X 2 1/2" | S82: un | T82: 9 | W82: 0
A83: S | B83: 2 | C83: S | D83: 0 | E83: 1 | F83: 6 | G83: 0 | H83: 0 | I83: 0 | J83: 0 | K83: 0 | M83: Serviço | N83: Serviço | O83: - | P83: COMPOSIÇÃO | Q83: COMP 030_SEE | R83: COTOVELO DE FERRO GALV. 90° X 2 1/2" | S83: UN | T83: 38 | W83: 0
A84: S | B84: 2 | C84: S | D84: 0 | E84: 1 | F84: 6 | G84: 0 | H84: 0 | I84: 0 | J84: 0 | K84: 0 | M84: Serviço | N84: Serviço | O84: - | P84: COMPOSIÇÃO | Q84: COMP 077_SEE | R84: UNIAO FERRO GALV C/ASSENTO CONICO BRONZE 2 1/2" | S84: UN | T84: 6 | W84: 0
A85: S | B85: 2 | C85: S | D85: 0 | E85: 1 | F85: 6 | G85: 0 | H85: 0 | I85: 0 | J85: =IF(OR($C85="S",$C85=0),0,MATCH(0,OFFSET($D85,1,$C85,ROW($C$521)-ROW($C85)),0)) -> 0 | K85: =IF(OR($C85="S",$C85=0),0,MATCH(OFFSET($D85,0,$C85)+1,OFFSET($D85,1,$C85,ROW($C$521)-ROW($C85)),0)) -> 0 | M85: Serviço | N85: Serviço | O85: - | P85: COMPOSIÇÃO | Q85: COMP 076_SEE | R85: CURVA FERRO GALVANIZADO 45G ROSCA MACHO/FEMEA REF. 2 1/2" | S85: UN | T85: 3 | W85: 0
A86: S | B86: 2 | C86: S | D86: 0 | E86: 1 | F86: 6 | G86: 0 | H86: 0 | I86: 0 | J86: 0 | K86: 0 | M86: Serviço | N86: Serviço | O86: - | P86: COMPOSIÇÃO | Q86: COMP 022_SEE | R86: TAMPÃO FOFO 40X50CM C/INSCRIÇÃO | S86: UN | T86: 1 | W86: 0
A87: S | B87: 2 | C87: S | D87: 0 | E87: 1 | F87: 6 | G87: 0 | H87: 0 | I87: 0 | J87: 0 | K87: 0 | M87: Serviço | N87: Serviço | O87: - | P87: COMPOSIÇÃO | Q87: COMP 024_SEE | R87: SINALIZADOR FOTOLUMINESCENTE PARA EXTINTOR | S87: UN | T87: 12 | W87: 0
A88: S | B88: 2 | C88: S | D88: 0 | E88: 1 | F88: 6 | G88: 0 | H88: 0 | I88: 0 | J88: 0 | K88: 0 | M88: Serviço | N88: Serviço | O88: - | P88: COMPOSIÇÃO | Q88: COMP 186_SEE | R88: BOTOEIRA BOMBA DE INCÊNDIO C/ MARTELO CONVENCIONAL/ ANALÓGICA | S88: UN | T88: 1 | W88: 0
A89: S | B89: 2 | C89: S | D89: 0 | E89: 1 | F89: 6 | G89: 0 | H89: 0 | I89: 0 | J89: 0 | K89: 0 | M89: Serviço | N89: Serviço | O89: - | P89: COMPOSIÇÃO | Q89: COMP 188_SEE | R89: ACIONADOR MANUAL DE ALARME | S89: UN | T89: 7 | W89: 0
A90: S | B90: 2 | C90: S | D90: 0 | E90: 1 | F90: 6 | G90: 0 | H90: 0 | I90: 0 | J90: 0 | K90: 0 | M90: Serviço | N90: Serviço | O90: - | P90: COMPOSIÇÃO | Q90: COMP 190_SEE | R90: CENTRAL DE DETECÇÃO E ALARME DE 40 SETORES COM BATERIA | S90: UN | T90: 1 | W90: 0
A91: S | B91: 2 | C91: S | D91: 0 | E91: 1 | F91: 6 | G91: 0 | H91: 0 | I91: 0 | J91: 0 | K91: 0 | M91: Serviço | N91: Serviço | O91: - | P91: COMPOSIÇÃO | Q91: COMP 025_SEE | R91: SINALIZADOR FOTOLUMINESCENTE DE EMERGÊNCIA | S91: UN | T91: 30 | W91: 0
A92: S | B92: 2 | C92: S | D92: 0 | E92: 1 | F92: 6 | G92: 0 | H92: 0 | I92: 0 | J92: 0 | K92: 0 | M92: Serviço | N92: Serviço | O92: - | P92: COMPOSIÇÃO | Q92: COMP 277_SEE | R92: MARCAÇÃO NO PISO - 1X1 M PARA EXTINTOR | S92: M2 | T92: 12 | W92: 0
A93: S | B93: 2 | C93: S | D93: 0 | E93: 1 | F93: 6 | G93: 0 | H93: 0 | I93: 0 | J93: 0 | K93: 0 | M93: Serviço | N93: Serviço | O93: - | P93: COMPOSIÇÃO | Q93: COMP 040_SEE | R93: CONJUNTO MOTOR-BOMBA ELÉTRICA TRIFÁSICO 380/220 V PARA VZ= 24,33 M³/H, HM= 46,24 M POTÊNCIA= 7,5 CV | S93: UN | T93: 1 | W93: 0
A94: S | B94: 2 | C94: S | D94: 0 | E94: 1 | F94: 6 | G94: 0 | H94: 0 | I94: 0 | J94: 0 | K94: 0 | M94: Serviço | N94: Serviço | O94: - | P94: COMPOSIÇÃO | Q94: COMP 546_SEE | R94: BUJÃO DE REBORDO 2.1/2" | S94: UN | T94: 1 | W94: 0
A95: S | B95: 2 | C95: S | D95: 0 | E95: 1 | F95: 6 | G95: 0 | H95: 0 | I95: 0 | J95: 0 | K95: 0 | M95: Serviço | N95: Serviço | O95: - | P95: COMPOSIÇÃO | Q95: COMP 549_SEE | R95: FLANGE GALVANIZADA 2.1/2" - FORNECIMENTO E INSTALAÇÃO | S95: UN | T95: 1 | W95: 0
A96: =CHOOSE(1+LOG(1+2*(ORÇAMENTO.Nivel="Nível 1")+4*(ORÇAMENTO.Nivel="Nível 2")+8*(ORÇAMENTO.Nivel="Nível 3")+16*(ORÇAMENTO.Nivel="Nível 4")+32*(ORÇAMENTO.Nivel="Serviço"),2),0,1,2,3,4,"S") -> 2 | B96: =IF(OR(C96="s",C96=0),OFFSET(B96,-1,0),C96) -> 2 | C96: =IF(OFFSET(C96,-1,0)="L",1,IF(OFFSET(C96,-1,0)=1,2,IF(OR(A96="s",A96=0),"S",IF(AND(OFFSET(C96,-1,0)=2,A96=4),3,IF(AND(OR(OFFSET(C96,-1,0)="s",OFFSET(C96,-1,0)=0),A96<>"s",A96>OFFSET(B96,-1,0)),OFFSET(B96,-1,0),A96))))) -> 2 | D96: =IF(OR(C96="S",C96=0),0,IF(ISERROR(K96),J96,SMALL(J96:K96,1))) -> 3 | E96: =IF($C96=1,OFFSET(E96,-1,0)+1,OFFSET(E96,-1,0)) -> 1 | F96: =IF($C96=1,0,IF($C96=2,OFFSET(F96,-1,0)+1,OFFSET(F96,-1,0))) -> 7 | G96: =IF(AND($C96<=2,$C96<>0),0,IF($C96=3,OFFSET(G96,-1,0)+1,OFFSET(G96,-1,0))) -> 0 | H96: =IF(AND($C96<=3,$C96<>0),0,IF($C96=4,OFFSET(H96,-1,0)+1,OFFSET(H96,-1,0))) -> 0 | I96: =IF(AND($C96<=4,$C96<>0),0,IF(AND($C96="S",$W96>0),OFFSET(I96,-1,0)+1,OFFSET(I96,-1,0))) -> 0 | J96: 22 | K96: 3 | M96: Nível 2 | N96: Nível 2 | O96: - | P96: AGETOP | Q96: 91045 | R96: ALVENARIAS E DIVISÓRIAS | S96: Un | W96: 0
A97: S | B97: 2 | C97: S | D97: 0 | E97: =IF($C97=1,OFFSET(E97,-1,0)+1,OFFSET(E97,-1,0)) -> 1 | F97: =IF($C97=1,0,IF($C97=2,OFFSET(F97,-1,0)+1,OFFSET(F97,-1,0))) -> 7 | G97: =IF(AND($C97<=2,$C97<>0),0,IF($C97=3,OFFSET(G97,-1,0)+1,OFFSET(G97,-1,0))) -> 0 | H97: =IF(AND($C97<=3,$C97<>0),0,IF($C97=4,OFFSET(H97,-1,0)+1,OFFSET(H97,-1,0))) -> 0 | I97: 0 | J97: 0 | K97: 0 | M97: Serviço | N97: Serviço | O97: - | P97: SINAPI | Q97: 87520 | R97: ALVENARIA DE VEDAÇÃO DE BLOCOS CERÂMICOS FURADOS NA HORIZONTAL DE 9X19X19CM (ESPESSURA 9CM) DE PAREDES COM ÁREA LÍQUIDA MAIOR OU IGUAL A 6M² COM VÃOS E ARGAMASSA DE ASSENTAMENTO COM PREPARO MANUAL. AF_06/2014 | S97: M2 | T97: 6.13 | W97: 0 | X97: Referência: AGETOP - 100201
A98: S | B98: 2 | C98: S | D98: 0 | E98: 1 | F98: 7 | G98: 0 | H98: 0 | I98: 0 | J98: 0 | K98: 0 | M98: Serviço | N98: Serviço | O98: - | P98: AGETOP | Q98: 100502 | R98: ELEMENTO VAZADO CERAMICO (6 x 18 x 18) | S98: m2 | T98: 3.02 | W98: 0
A99: 2 | B99: =IF(OR(C99="s",C99=0),OFFSET(B99,-1,0),C99) -> 2 | C99: =IF(OFFSET(C99,-1,0)="L",1,IF(OFFSET(C99,-1,0)=1,2,IF(OR(A99="s",A99=0),"S",IF(AND(OFFSET(C99,-1,0)=2,A99=4),3,IF(AND(OR(OFFSET(C99,-1,0)="s",OFFSET(C99,-1,0)=0),A99<>"s",A99>OFFSET(B99,-1,0)),OFFSET(B99,-1,0),A99))))) -> 2 | D99: =IF(OR(C99="S",C99=0),0,IF(ISERROR(K99),J99,SMALL(J99:K99,1))) -> 2 | E99: 1 | F99: 8 | G99: 0 | H99: 0 | I99: 0 | J99: 19 | K99: 2 | M99: Nível 2 | N99: Nível 2 | O99: - | R99: ESQUADRIAS METÁLICAS | S99: - | W99: 0
A100: S | B100: 2 | C100: S | D100: 0 | E100: 1 | F100: 8 | G100: 0 | H100: 0 | I100: 0 | J100: 0 | K100: 0 | M100: Serviço | N100: Serviço | O100: - | P100: SINAPI | Q100: 74238/2 | R100: PORTAO EM TELA ARAME GALVANIZADO N.12 MALHA 2" E MOLDURA EM TUBOS DE ACO COM DUAS FOLHAS DE ABRIR, INCLUSO FERRAGENS | S100: M2 | T100: 2.1 | W100: 0 | X100: Referência: AGETOP - 180281
A101: 2 | B101: 2 | C101: 2 | D101: 3 | E101: 1 | F101: 9 | G101: 0 | H101: 0 | I101: 0 | J101: 17 | K101: 3 | M101: Nível 2 | N101: Nível 2 | O101: - | R101: REVESTIMENTO DE PAREDE | S101: - | W101: 0
A102: =CHOOSE(1+LOG(1+2*(ORÇAMENTO.Nivel="Nível 1")+4*(ORÇAMENTO.Nivel="Nível 2")+8*(ORÇAMENTO.Nivel="Nível 3")+16*(ORÇAMENTO.Nivel="Nível 4")+32*(ORÇAMENTO.Nivel="Serviço"),2),0,1,2,3,4,"S") -> S | B102: 2 | C102: S | D102: 0 | E102: 1 | F102: 9 | G102: 0 | H102: 0 | I102: =IF(AND($C102<=4,$C102<>0),0,IF(AND($C102="S",$W102>0),OFFSET(I102,-1,0)+1,OFFSET(I102,-1,0))) -> 0 | J102: 0 | K102: 0 | M102: Serviço | N102: Serviço | O102: - | P102: SINAPI | Q102: 87889 | R102: CHAPISCO APLICADO EM ALVENARIA (SEM PRESENÇA DE VÃOS) E ESTRUTURAS DE CONCRETO DE FACHADA, COM ROLO PARA TEXTURA ACRÍLICA. ARGAMASSA TRAÇO 1:4 E EMULSÃO POLIMÉRICA (ADESIVO) COM PREPARO EM BETONEIRA 400L. AF_06/2014 | S102: M2 | T102: 12.26 | W102: 0 | X102: Referência: AGETOP - 210102
A103: S | B103: 2 | C103: S | D103: 0 | E103: =IF($C103=1,OFFSET(E103,-1,0)+1,OFFSET(E103,-1,0)) -> 1 | F103: =IF($C103=1,0,IF($C103=2,OFFSET(F103,-1,0)+1,OFFSET(F103,-1,0))) -> 9 | G103: =IF(AND($C103<=2,$C103<>0),0,IF($C103=3,OFFSET(G103,-1,0)+1,OFFSET(G103,-1,0))) -> 0 | H103: =IF(AND($C103<=3,$C103<>0),0,IF($C103=4,OFFSET(H103,-1,0)+1,OFFSET(H103,-1,0))) -> 0 | I103: 0 | J103: 0 | K103: 0 | M103: Serviço | N103: Serviço | O103: - | P103: SINAPI | Q103: 87547 | R103: MASSA ÚNICA, PARA RECEBIMENTO DE PINTURA, EM ARGAMASSA TRAÇO 1:2:8, PREPARO MECÂNICO COM BETONEIRA 400L, APLICADA MANUALMENTE EM FACES INTERNAS DE PAREDES, ESPESSURA DE 10MM, COM EXECUÇÃO DE TALISCAS. AF_06/2014 | S103: M2 | T103: 12.26 | W103: 0
A104: 2 | B104: =IF(OR(C104="s",C104=0),OFFSET(B104,-1,0),C104) -> 2 | C104: =IF(OFFSET(C104,-1,0)="L",1,IF(OFFSET(C104,-1,0)=1,2,IF(OR(A104="s",A104=0),"S",IF(AND(OFFSET(C104,-1,0)=2,A104=4),3,IF(AND(OR(OFFSET(C104,-1,0)="s",OFFSET(C104,-1,0)=0),A104<>"s",A104>OFFSET(B104,-1,0)),OFFSET(B104,-1,0),A104))))) -> 2 | D104: =IF(OR(C104="S",C104=0),0,IF(ISERROR(K104),J104,SMALL(J104:K104,1))) -> 3 | E104: 1 | F104: 10 | G104: 0 | H104: 0 | I104: 0 | J104: 14 | K104: 3 | M104: Nível 2 | N104: Nível 2 | O104: - | R104: REVESTIMENTO DE PISO | S104: - | W104: 0
A105: S | B105: 2 | C105: S | D105: 0 | E105: 1 | F105: 10 | G105: 0 | H105: 0 | I105: 0 | J105: 0 | K105: 0 | M105: Serviço | N105: Serviço | O105: - | P105: AGETOP | Q105: 221126 | R105: PISO DE LADRILHO HIDRÁULICO COLORIDO MODELO TÁTIL ( ALERTA OU DIRECIONAL) SEM LASTRO | S105: m2 | T105: 110.07 | W105: 0
A106: S | B106: 2 | C106: S | D106: 0 | E106: 1 | F106: 10 | G106: 0 | H106: 0 | I106: 0 | J106: =IF(OR($C106="S",$C106=0),0,MATCH(0,OFFSET($D106,1,$C106,ROW($C$521)-ROW($C106)),0)) -> 0 | K106: =IF(OR($C106="S",$C106=0),0,MATCH(OFFSET($D106,0,$C106)+1,OFFSET($D106,1,$C106,ROW($C$521)-ROW($C106)),0)) -> 0 | M106: Serviço | N106: Serviço | O106: - | P106: AGETOP | Q106: 220102 | R106: PISO CONCRETO DESEMPENADO ESPESSURA = 5 CM 1:2,5:3,5 | S106: m2 | T106: 1.89 | W106: 0
A107: 2 | B107: 2 | C107: 2 | D107: 3 | E107: 1 | F107: 11 | G107: 0 | H107: 0 | I107: 0 | J107: 11 | K107: 3 | M107: Nível 2 | N107: Nível 2 | O107: - | R107: ADMINISTRAÇÃO | S107: - | W107: 0
A108: S | B108: 2 | C108: S | D108: 0 | E108: 1 | F108: 11 | G108: 0 | H108: 0 | I108: 0 | J108: 0 | K108: 0 | M108: Serviço | N108: Serviço | O108: - | P108: SINAPI | Q108: 90778 | R108: ENGENHEIRO CIVIL DE OBRA PLENO COM ENCARGOS COMPLEMENTARES | S108: H | T108: 88 | W108: 0 | X108: Referência: AGETOP - 250101
A109: S | B109: 2 | C109: S | D109: 0 | E109: 1 | F109: 11 | G109: 0 | H109: 0 | I109: 0 | J109: 0 | K109: 0 | M109: Serviço | N109: Serviço | O109: - | P109: SINAPI | Q109: 90776 | R109: ENCARREGADO GERAL COM ENCARGOS COMPLEMENTARES | S109: H | T109: 440 | W109: 0 | X109: Referência: AGETOP - 250103
A110: 2 | B110: 2 | C110: 2 | D110: 4 | E110: 1 | F110: 12 | G110: 0 | H110: 0 | I110: 0 | J110: 8 | K110: 4 | M110: Nível 2 | N110: Nível 2 | O110: - | R110: PINTURA | S110: - | W110: 0
A111: S | B111: 2 | C111: S | D111: 0 | E111: 1 | F111: 12 | G111: 0 | H111: 0 | I111: 0 | J111: =IF(OR($C111="S",$C111=0),0,MATCH(0,OFFSET($D111,1,$C111,ROW($C$521)-ROW($C111)),0)) -> 0 | K111: =IF(OR($C111="S",$C111=0),0,MATCH(OFFSET($D111,0,$C111)+1,OFFSET($D111,1,$C111,ROW($C$521)-ROW($C111)),0)) -> 0 | M111: Serviço | N111: Serviço | O111: - | P111: SINAPI | Q111: 88497 | R111: APLICAÇÃO E LIXAMENTO DE MASSA LÁTEX EM PAREDES, DUAS DEMÃOS. AF_06/2014 | S111: M2 | T111: 12.26 | W111: 0 | X111: Referência: AGETOP - 261300
A112: =CHOOSE(1+LOG(1+2*(ORÇAMENTO.Nivel="Nível 1")+4*(ORÇAMENTO.Nivel="Nível 2")+8*(ORÇAMENTO.Nivel="Nível 3")+16*(ORÇAMENTO.Nivel="Nível 4")+32*(ORÇAMENTO.Nivel="Serviço"),2),0,1,2,3,4,"S") -> S | B112: =IF(OR(C112="s",C112=0),OFFSET(B112,-1,0),C112) -> 2 | C112: =IF(OFFSET(C112,-1,0)="L",1,IF(OFFSET(C112,-1,0)=1,2,IF(OR(A112="s",A112=0),"S",IF(AND(OFFSET(C112,-1,0)=2,A112=4),3,IF(AND(OR(OFFSET(C112,-1,0)="s",OFFSET(C112,-1,0)=0),A112<>"s",A112>OFFSET(B112,-1,0)),OFFSET(B112,-1,0),A112))))) -> S | D112: =IF(OR(C112="S",C112=0),0,IF(ISERROR(K112),J112,SMALL(J112:K112,1))) -> 0 | E112: =IF($C112=1,OFFSET(E112,-1,0)+1,OFFSET(E112,-1,0)) -> 1 | F112: =IF($C112=1,0,IF($C112=2,OFFSET(F112,-1,0)+1,OFFSET(F112,-1,0))) -> 12 | G112: =IF(AND($C112<=2,$C112<>0),0,IF($C112=3,OFFSET(G112,-1,0)+1,OFFSET(G112,-1,0))) -> 0 | H112: =IF(AND($C112<=3,$C112<>0),0,IF($C112=4,OFFSET(H112,-1,0)+1,OFFSET(H112,-1,0))) -> 0 | I112: =IF(AND($C112<=4,$C112<>0),0,IF(AND($C112="S",$W112>0),OFFSET(I112,-1,0)+1,OFFSET(I112,-1,0))) -> 0 | J112: 0 | K112: 0 | M112: Serviço | N112: Serviço | O112: - | P112: SINAPI | Q112: 88489 | R112: APLICAÇÃO MANUAL DE PINTURA COM TINTA LÁTEX ACRÍLICA EM PAREDES, DUAS DEMÃOS. AF_06/2014 | S112: M2 | T112: 12.26 | W112: 0 | X112: Referência: AGETOP - 261001
A113: S | B113: 2 | C113: S | D113: 0 | E113: 1 | F113: 12 | G113: 0 | H113: 0 | I113: 0 | J113: 0 | K113: 0 | M113: Serviço | N113: Serviço | O113: - | P113: SINAPI | Q113: 74145/1 | R113: PINTURA ESMALTE FOSCO, DUAS DEMAOS, SOBRE SUPERFICIE METALICA, INCLUSO UMA DEMAO DE FUNDO ANTICORROSIVO. UTILIZACAO DE REVOLVER ( AR-COMPRIMIDO). | S113: M2 | T113: 700.8 | W113: 0 | X113: Referência: AGETOP - 261602
A114: 2 | B114: 2 | C114: 2 | D114: 4 | E114: 1 | F114: 13 | G114: 0 | H114: 0 | I114: 0 | J114: 4 | K114: 145 | M114: Nível 2 | N114: Nível 2 | O114: - | R114: DIVERSOS | S114: - | W114: 0
A115: S | B115: 2 | C115: S | D115: 0 | E115: 1 | F115: 13 | G115: 0 | H115: 0 | I115: 0 | J115: 0 | K115: 0 | M115: Serviço | N115: Serviço | O115: - | P115: AGETOP | Q115: 270501 | R115: LIMPEZA FINAL DE OBRA - (OBRAS CIVIS) | S115: m2 | T115: 62 | W115: 0
A116: S | B116: 2 | C116: S | D116: 0 | E116: 1 | F116: 13 | G116: 0 | H116: 0 | I116: 0 | J116: 0 | K116: 0 | M116: Serviço | N116: Serviço | O116: - | P116: AGETOP | Q116: 270621 | R116: ALAMBRADO EM TUBO INDUSTRIAL 2"#2,28 E TELA MALHA 4" FIO 12 (QUADRA ESPORTE EXISTENTE) SEM PINTURA | S116: m2 | T116: 464.4 | W116: 0
A117: S | B117: 2 | C117: S | D117: 0 | E117: 1 | F117: 13 | G117: 0 | H117: 0 | I117: 0 | J117: 0 | K117: 0 | M117: Serviço | N117: Serviço | O117: - | P117: COMPOSIÇÃO | Q117: COMP 084_SEE | R117: GUARDA-CORPO COM CORRIMÃO - SEDUC | S117: M | T117: 49.46 | W117: 0
A118: 1 | B118: 1 | C118: 1 | D118: 38 | E118: 2 | F118: 0 | G118: 0 | H118: 0 | I118: 0 | J118: 403 | K118: 38 | L118: F | M118: Nível 1 | N118: Nível 1 | O118: 2. | P118: AGETOP | Q118: 271099 | R118: CENTRAL DE GÁS | S118: CJ | W118: 0
A119: 2 | B119: 2 | C119: 2 | D119: 2 | E119: 2 | F119: 1 | G119: 0 | H119: 0 | I119: 0 | J119: =IF(OR($C119="S",$C119=0),0,MATCH(0,OFFSET($D119,1,$C119,ROW($C$521)-ROW($C119)),0)) -> 37 | K119: =IF(OR($C119="S",$C119=0),0,MATCH(OFFSET($D119,0,$C119)+1,OFFSET($D119,1,$C119,ROW($C$521)-ROW($C119)),0)) -> 2 | M119: Nível 2 | N119: Nível 2 | O119: - | P119: AGETOP | Q119: 271101 | R119: SERVIÇOS PRELIMINARES | S119: CJ | W119: 0
A120: S | B120: 2 | C120: S | D120: 0 | E120: 2 | F120: 1 | G120: 0 | H120: 0 | I120: 0 | J120: 0 | K120: 0 | M120: Serviço | N120: Serviço | O120: - | P120: AGETOP | Q120: 20121 | R120: DEM. MANUAL EM CONCR.SIMPLES C/TR.ATE CB.E CARGA (O.C.) | S120: m3 | T120: 2.2 | W120: 0
A121: 2 | B121: 2 | C121: 2 | D121: 2 | E121: 2 | F121: 2 | G121: 0 | H121: 0 | I121: 0 | J121: 35 | K121: 2 | M121: Nível 2 | N121: Nível 2 | O121: - | P121: SINAPI | R121: TRANSPORTES | S121: - | W121: 0
A122: S | B122: 2 | C122: S | D122: 0 | E122: 2 | F122: 2 | G122: 0 | H122: 0 | I122: 0 | J122: 0 | K122: 0 | M122: Serviço | N122: Serviço | O122: - | P122: AGETOP | Q122: 30105 | R122: TRANSPORTE DE ENTULHO EM CAÇAMBA ESTACIONÁRIA INCLUSO A CARGA MANUAL | S122: m3 | T122: 2.2 | W122: 0
A123: 2 | B123: 2 | C123: 2 | D123: 3 | E123: 2 | F123: 3 | G123: 0 | H123: 0 | I123: 0 | J123: 33 | K123: 3 | M123: Nível 2 | N123: Nível 2 | O123: - | P123: SINAPI | R123: INSTALAÇÕES ELÉTRICAS | S123: - | W123: 0
A124: S | B124: 2 | C124: S | D124: 0 | E124: 2 | F124: 3 | G124: 0 | H124: 0 | I124: 0 | J124: 0 | K124: 0 | M124: Serviço | N124: Serviço | O124: - | P124: AGETOP | Q124: 71863 | R124: PARAFUSO P/BUCHA S-10 | S124: Un | T124: 14 | W124: 0
A125: S | B125: 2 | C125: S | D125: 0 | E125: 2 | F125: 3 | G125: 0 | H125: 0 | I125: 0 | J125: 0 | K125: 0 | M125: Serviço | N125: Serviço | O125: - | P125: AGETOP | Q125: 70393 | R125: BUCHA DE NYLON S-10 | S125: Un | T125: 14 | W125: 0
A126: 2 | B126: 2 | C126: 2 | D126: 23 | E126: 2 | F126: 4 | G126: 0 | H126: 0 | I126: 0 | J126: 30 | K126: 23 | M126: Nível 2 | N126: Nível 2 | O126: - | P126: SINAPI | R126: INSTALAÇÕES ESPECIAIS | S126: - | W126: 0
A127: S | B127: 2 | C127: S | D127: 0 | E127: 2 | F127: 4 | G127: 0 | H127: 0 | I127: 0 | J127: 0 | K127: 0 | M127: Serviço | N127: Serviço | O127: - | P127: AGETOP | Q127: 85003 | R127: EXTINTOR PO QUIMICO SECO (6 KG) - CAPACIDADE EXTINTORA 20 BC | S127: Un | T127: 1 | W127: 0
A128: S | B128: 2 | C128: S | D128: 0 | E128: 2 | F128: 4 | G128: 0 | H128: 0 | I128: 0 | J128: 0 | K128: 0 | M128: Serviço | N128: Serviço | O128: - | P128: AGETOP | Q128: 91007 | R128: CENTRAL DE GÁS PADRÃO AGETOP SEM INSTALAÇÕES (1+1 CILINDRO 45 KG) | S128: Un | T128: 1 | W128: 0
A129: S | B129: 2 | C129: S | D129: 0 | E129: 2 | F129: 4 | G129: 0 | H129: 0 | I129: 0 | J129: 0 | K129: 0 | M129: Serviço | N129: Serviço | O129: - | P129: AGETOP | Q129: 91023 | R129: UNIÃO S/BRONZE PRETA 3/4" NPT 300 LBS | S129: Un | T129: 3 | W129: 0
A130: S | B130: 2 | C130: S | D130: 0 | E130: 2 | F130: 4 | G130: 0 | H130: 0 | I130: 0 | J130: 0 | K130: 0 | M130: Serviço | N130: Serviço | O130: - | P130: COMPOSIÇÃO | Q130: COMP 382_SEE | R130: TE DE REDUCAO DE FERRO GALVANIZADO, COM ROSCA BSP, DE 3/4" X 1/2" | S130: UN | T130: 1 | W130: 0
A131: S | B131: 2 | C131: S | D131: 0 | E131: 2 | F131: 4 | G131: 0 | H131: 0 | I131: 0 | J131: 0 | K131: 0 | M131: Serviço | N131: Serviço | O131: - | P131: COMPOSIÇÃO | Q131: COMP 383_SEE | R131: BUCHA DE REDUCAO DE FERRO GALVANIZADO, COM ROSCA BSP, DE 1/2" X 1/4" | S131: UN | T131: 3 | W131: 0
A132: S | B132: 2 | C132: S | D132: 0 | E132: 2 | F132: 4 | G132: 0 | H132: 0 | I132: 0 | J132: 0 | K132: 0 | M132: Serviço | N132: Serviço | O132: - | P132: AGETOP | Q132: 91021 | R132: LUVA GALVANIZADO DE REDUÇÃO 3/4" X 1/2" (GÁS) | S132: Un | T132: 2 | W132: 0
A133: S | B133: 2 | C133: S | D133: 0 | E133: 2 | F133: 4 | G133: 0 | H133: 0 | I133: 0 | J133: 0 | K133: 0 | M133: Serviço | N133: Serviço | O133: - | P133: SINAPI | Q133: 92692 | R133: NIPLE, EM FERRO GALVANIZADO, CONEXÃO ROSQUEADA, DN 15 (1/2"), INSTALADO EM RAMAIS E SUB-RAMAIS DE GÁS - FORNECIMENTO E INSTALAÇÃO. AF_12/2015 | S133: UN | T133: 3 | W133: 0
A134: S | B134: 2 | C134: S | D134: 0 | E134: 2 | F134: 4 | G134: 0 | H134: 0 | I134: 0 | J134: 0 | K134: 0 | M134: Serviço | N134: Serviço | O134: - | P134: AGETOP | Q134: 91031 | R134: NIPLE DUPLO 300 PSI 3/4" | S134: Un | T134: 6 | W134: 0
A135: S | B135: 2 | C135: S | D135: 0 | E135: 2 | F135: 4 | G135: 0 | H135: 0 | I135: 0 | J135: 0 | K135: 0 | M135: Serviço | N135: Serviço | O135: - | P135: SINAPI | Q135: 92688 | R135: TUBO DE AÇO GALVANIZADO COM COSTURA, CLASSE MÉDIA, CONEXÃO ROSQUEADA, DN 20 (3/4"), INSTALADO EM RAMAIS E SUB-RAMAIS DE GÁS - FORNECIMENTO E INSTALAÇÃO. AF_12/2015 | S135: M | T135: 30 | W135: 0
A136: S | B136: 2 | C136: S | D136: 0 | E136: 2 | F136: 4 | G136: 0 | H136: 0 | I136: 0 | J136: 0 | K136: 0 | M136: Serviço | N136: Serviço | O136: - | P136: SINAPI | Q136: 92701 | R136: JOELHO 90 GRAUS, EM FERRO GALVANIZADO, CONEXÃO ROSQUEADA, DN 20 (3/4"), INSTALADO EM RAMAIS E SUB-RAMAIS DE GÁS - FORNECIMENTO E INSTALAÇÃO. AF_12/2015 | S136: UN | T136: 6 | W136: 0
A137: S | B137: 2 | C137: S | D137: 0 | E137: 2 | F137: 4 | G137: 0 | H137: 0 | I137: 0 | J137: 0 | K137: 0 | M137: Serviço | N137: Serviço | O137: - | P137: COMPOSIÇÃO | Q137: COMP 237_SEE | R137: FITA ANTICORROSIVA | S137: M | T137: 24 | W137: 0
A138: S | B138: 2 | C138: S | D138: 0 | E138: 2 | F138: 4 | G138: 0 | H138: 0 | I138: 0 | J138: 0 | K138: 0 | M138: Serviço | N138: Serviço | O138: - | P138: AGETOP | Q138: 91025 | R138: VÁLVULA ESFERICA LATÃO 3/4" | S138: Un | T138: 4 | W138: 0
A139: S | B139: 2 | C139: S | D139: 0 | E139: 2 | F139: 4 | G139: 0 | H139: 0 | I139: 0 | J139: 0 | K139: 0 | M139: Serviço | N139: Serviço | O139: - | P139: COMPOSIÇÃO | Q139: COMP 210_SEE | R139: REGULADOR DE 1º ESTÁGIO 60KG/H MODELO AP-40 COM MANÔMETRO | S139: UN | T139: 1 | W139: 0
A140: S | B140: 2 | C140: S | D140: 0 | E140: 2 | F140: 4 | G140: 0 | H140: 0 | I140: 0 | J140: 0 | K140: 0 | M140: Serviço | N140: Serviço | O140: - | P140: AGETOP | Q140: 91019 | R140: TE PRETO 90º 3/4" NPT 300 LBS | S140: Un | T140: 1 | W140: 0
A141: S | B141: 2 | C141: S | D141: 0 | E141: 2 | F141: 4 | G141: 0 | H141: 0 | I141: 0 | J141: 0 | K141: 0 | M141: Serviço | N141: Serviço | O141: - | P141: AGETOP | Q141: 91029 | R141: VALVULA DE RETENÇÃO LATÃO 1/2" X 7/16" NPT | S141: Un | T141: 2 | W141: 0
A142: S | B142: 2 | C142: S | D142: 0 | E142: 2 | F142: 4 | G142: 0 | H142: 0 | I142: 0 | J142: 0 | K142: 0 | M142: Serviço | N142: Serviço | O142: - | P142: COMPOSIÇÃO | Q142: COMP 211_SEE | R142: REGULADOR DE 2º ESTÁGIO 5KG/H | S142: UN | T142: 2 | W142: 0
A143: S | B143: 2 | C143: S | D143: 0 | E143: 2 | F143: 4 | G143: 0 | H143: 0 | I143: 0 | J143: 0 | K143: 0 | M143: Serviço | N143: Serviço | O143: - | P143: COMPOSIÇÃO | Q143: COMP 212_SEE | R143: NIPLE DE REDUÇÃO 1/2" X 1/4" BSP | S143: UN | T143: 2 | W143: 0
A144: S | B144: 2 | C144: S | D144: 0 | E144: 2 | F144: 4 | G144: 0 | H144: 0 | I144: 0 | J144: 0 | K144: 0 | M144: Serviço | N144: Serviço | O144: - | P144: COMPOSIÇÃO | Q144: COMP 213_SEE | R144: NIPLE DE REDUÇÃO 3/4" X 1/2" BSP | S144: UN | T144: 1 | W144: 0
A145: S | B145: 2 | C145: S | D145: 0 | E145: 2 | F145: 4 | G145: 0 | H145: 0 | I145: 0 | J145: 0 | K145: 0 | M145: Serviço | N145: Serviço | O145: - | P145: COMPOSIÇÃO | Q145: COMP 235_SEE | R145: PLACA DE SINALIZAÇÃO EM PVC COD 01 - (300X300) PROIBIDO FUMAR | S145: UN | T145: 2 | W145: 0
A146: S | B146: 2 | C146: S | D146: 0 | E146: 2 | F146: 4 | G146: 0 | H146: 0 | I146: 0 | J146: 0 | K146: 0 | M146: Serviço | N146: Serviço | O146: - | P146: COMPOSIÇÃO | Q146: COMP 236_SEE | R146: PLACA DE SINALIZAÇÃO EM PVC COD 06 - (300X300) PERIGO INFLAMÁVEL | S146: UN | T146: 2 | W146: 0
A147: S | B147: 2 | C147: S | D147: 0 | E147: 2 | F147: 4 | G147: 0 | H147: 0 | I147: 0 | J147: 0 | K147: 0 | M147: Serviço | N147: Serviço | O147: - | P147: AGETOP | Q147: 91043 | R147: BRAÇADEIRA METALICA TIPO "D" DIAM. 3/4" | S147: Un | T147: 7 | W147: 0
A148: S | B148: 2 | C148: S | D148: 0 | E148: 2 | F148: 4 | G148: 0 | H148: 0 | I148: 0 | J148: 0 | K148: 0 | M148: Serviço | N148: Serviço | O148: - | P148: AGETOP | Q148: 91045 | R148: SUPORTE PARA COLETOR | S148: Un | T148: 3 | W148: 0
A149: 2 | B149: 2 | C149: 2 | D149: 2 | E149: 2 | F149: 5 | G149: 0 | H149: 0 | I149: 0 | J149: 7 | K149: 2 | M149: Nível 2 | N149: Nível 2 | O149: - | P149: AGETOP | R149: REVESTIMENTO DE PISO | S149: - | W149: 0
A150: S | B150: 2 | C150: S | D150: 0 | E150: 2 | F150: 5 | G150: 0 | H150: 0 | I150: 0 | J150: 0 | K150: 0 | M150: Serviço | N150: Serviço | O150: - | P150: AGETOP | Q150: 220102 | R150: PISO CONCRETO DESEMPENADO ESPESSURA = 5 CM 1:2,5:3,5 | S150: m2 | T150: 4.4 | W150: 0
A151: 2 | B151: 2 | C151: 2 | D151: 3 | E151: 2 | F151: 6 | G151: 0 | H151: 0 | I151: 0 | J151: =IF(OR($C151="S",$C151=0),0,MATCH(0,OFFSET($D151,1,$C151,ROW($C$521)-ROW($C151)),0)) -> 5 | K151: =IF(OR($C151="S",$C151=0),0,MATCH(OFFSET($D151,0,$C151)+1,OFFSET($D151,1,$C151,ROW($C$521)-ROW($C151)),0)) -> 3 | M151: Nível 2 | N151: Nível 2 | O151: - | P151: SINAPI | R151: ADMINISTRAÇÃO | S151: - | W151: 0
A152: 3 | B152: 3 | C152: 3 | D152: 2 | E152: 2 | F152: 6 | G152: 1 | H152: 0 | I152: 0 | J152: 2 | K152: 29 | M152: Nível 3 | N152: Nível 3 | O152: - | P152: AGETOP | R152: LAUDO DE ESTANQUEIDADE | S152: - | W152: 0
A153: S | B153: 3 | C153: S | D153: 0 | E153: 2 | F153: 6 | G153: 1 | H153: 0 | I153: 0 | J153: 0 | K153: 0 | M153: Serviço | N153: Serviço | O153: - | P153: SINAPI | Q153: 90778 | R153: ENGENHEIRO CIVIL DE OBRA PLENO COM ENCARGOS COMPLEMENTARES | S153: H | T153: 16 | W153: 0 | X153: Referência: AGETOP - 250101
A154: 2 | B154: 2 | C154: 2 | D154: 2 | E154: 2 | F154: 7 | G154: 0 | H154: 0 | I154: 0 | J154: 2 | K154: 87 | M154: Nível 2 | N154: Nível 2 | O154: - | P154: AGETOP | R154: DIVERSOS | S154: - | W154: 0
A155: S | B155: 2 | C155: S | D155: 0 | E155: 2 | F155: 7 | G155: 0 | H155: 0 | I155: 0 | J155: 0 | K155: 0 | M155: Serviço | N155: Serviço | O155: - | P155: AGETOP | Q155: 270501 | R155: LIMPEZA FINAL DE OBRA - (OBRAS CIVIS) | S155: m2 | T155: 6 | W155: 0
A156: 1 | B156: 1 | C156: 1 | D156: 125 | E156: 3 | F156: 0 | G156: 0 | H156: 0 | I156: 0 | J156: 365 | K156: 125 | L156: F | M156: Nível 1 | N156: Nível 1 | O156: 3. | P156: SINAPI | R156: BLOCO 1 SALA PADRÃO SEDUC 2017 - LAJE | S156: - | W156: 0
A157: 2 | B157: 2 | C157: 2 | D157: 2 | E157: 3 | F157: 1 | G157: 0 | H157: 0 | I157: 0 | J157: 124 | K157: 2 | M157: Nível 2 | N157: Nível 2 | O157: - | P157: SINAPI | R157: SERVIÇOS PRELIMINARES | S157: - | W157: 0
A158: S | B158: 2 | C158: S | D158: 0 | E158: 3 | F158: 1 | G158: 0 | H158: 0 | I158: 0 | J158: 0 | K158: 0 | M158: Serviço | N158: Serviço | O158: - | P158: AGETOP | Q158: 20701 | R158: LOCAÇÃO DA OBRA, EXECUÇÃO DE GABARITO SEM REAPROVEITAMENTO, INCLUSO PINTURA (FACE INTERNA DO RIPÃO 15CM) E PIQUETE COM TESTEMUNHA | S158: m2 | T158: 64.26 | W158: 0
A159: 2 | B159: 2 | C159: 2 | D159: 3 | E159: 3 | F159: 2 | G159: 0 | H159: 0 | I159: 0 | J159: 122 | K159: 3 | M159: Nível 2 | N159: Nível 2 | O159: - | P159: SINAPI | R159: TRANSPORTES | S159: - | W159: 0
A160: S | B160: 2 | C160: S | D160: 0 | E160: 3 | F160: 2 | G160: 0 | H160: 0 | I160: 0 | J160: 0 | K160: 0 | M160: Serviço | N160: Serviço | O160: - | P160: SINAPI | Q160: 72897 | R160: CARGA MANUAL DE ENTULHO EM CAMINHAO BASCULANTE 6 M3 | S160: M3 | T160: 6 | W160: 0
A161: S | B161: 2 | C161: S | D161: 0 | E161: 3 | F161: 2 | G161: 0 | H161: 0 | I161: 0 | J161: 0 | K161: 0 | M161: Serviço | N161: Serviço | O161: - | P161: SINAPI | Q161: 72900 | R161: TRANSPORTE DE ENTULHO COM CAMINHAO BASCULANTE 6 M3, RODOVIA PAVIMENTADA, DMT 0,5 A 1,0 KM | S161: M3 | T161: 6 | W161: 0
A162: 2 | B162: 2 | C162: 2 | D162: 8 | E162: 3 | F162: 3 | G162: 0 | H162: 0 | I162: 0 | J162: 119 | K162: 8 | M162: Nível 2 | N162: Nível 2 | O162: - | P162: SINAPI | R162: SERVIÇO EM TERRA | S162: - | W162: 0
A163: S | B163: 2 | C163: S | D163: 0 | E163: 3 | F163: 3 | G163: 0 | H163: 0 | I163: 0 | J163: 0 | K163: 0 | M163: Serviço | N163: Serviço | O163: - | P163: SINAPI | Q163: 93358 | R163: ESCAVAÇÃO MANUAL DE VALA COM PROFUNDIDADE MENOR OU IGUAL A 1,30 M. AF_03/2016 | S163: M3 | T163: 3.12 | W163: 0 | X163: Referência: AGETOP - 40101
A164: S | B164: 2 | C164: S | D164: 0 | E164: 3 | F164: 3 | G164: 0 | H164: 0 | I164: 0 | J164: 0 | K164: 0 | M164: Serviço | N164: Serviço | O164: - | P164: SINAPI | Q164: 96995 | R164: REATERRO MANUAL APILOADO COM SOQUETE. AF_10/2017 | S164: M3 | T164: 1.81 | W164: 0 | X164: Referência: AGETOP - 40902
A165: S | B165: 2 | C165: S | D165: 0 | E165: 3 | F165: 3 | G165: 0 | H165: 0 | I165: 0 | J165: 0 | K165: 0 | M165: Serviço | N165: Serviço | O165: - | P165: SINAPI | Q165: 79480 | R165: ESCAVACAO MECANICA CAMPO ABERTO EM SOLO EXCETO ROCHA ATE 2,00M PROFUNDIDADE | S165: M3 | T165: 12 | W165: 0 | X165: Referência: AGETOP - 41004
A166: S | B166: 2 | C166: S | D166: 0 | E166: 3 | F166: 3 | G166: 0 | H166: 0 | I166: 0 | J166: 0 | K166: 0 | M166: Serviço | N166: Serviço | O166: - | P166: SINAPI | Q166: 72898 | R166: CARGA E DESCARGA MECANIZADAS DE ENTULHO EM CAMINHAO BASCULANTE 6 M3 | S166: M3 | T166: 12 | W166: 0 | X166: Referência: AGETOP - 41005
A167: S | B167: 2 | C167: S | D167: 0 | E167: 3 | F167: 3 | G167: 0 | H167: 0 | I167: 0 | J167: 0 | K167: 0 | M167: Serviço | N167: Serviço | O167: - | P167: AGETOP | Q167: 41012 | R167: INDENIZAÇÃO DE JAZIDA | S167: m3 | T167: 12 | W167: 0
A168: S | B168: 2 | C168: S | D168: 0 | E168: 3 | F168: 3 | G168: 0 | H168: 0 | I168: 0 | J168: 0 | K168: 0 | M168: Serviço | N168: Serviço | O168: - | P168: AGETOP | Q168: 41006 | R168: TRANSPORTE DE MATERIAL ESCAVADO M3.KM | S168: m3km | T168: 120 | W168: 0
A169: S | B169: 2 | C169: S | D169: 0 | E169: 3 | F169: 3 | G169: 0 | H169: 0 | I169: 0 | J169: 0 | K169: 0 | M169: Serviço | N169: Serviço | O169: - | P169: SINAPI | Q169: 74005/2 | R169: COMPACTACAO MECANICA C/ CONTROLE DO GC>=95% DO PN (AREAS) (C/MONIVELADORA 140 HP E ROLO COMPRESSOR VIBRATORIO 80 HP) | S169: M3 | T169: 9.6 | W169: 0 | X169: Referência: AGETOP - 41008
A170: 2 | B170: 2 | C170: 2 | D170: 20 | E170: 3 | F170: 4 | G170: 0 | H170: 0 | I170: 0 | J170: 111 | K170: 20 | M170: Nível 2 | N170: Nível 2 | O170: - | P170: SINAPI | R170: FUNDAÇÕES E SONDAGENS | S170: - | W170: 0
A171: 3 | B171: 3 | C171: 3 | D171: 10 | E171: 3 | F171: 4 | G171: 1 | H171: 0 | I171: 0 | J171: 19 | K171: 10 | M171: Nível 3 | N171: Nível 3 | O171: - | P171: SINAPI | R171: ESTACAS E BLOCOS | S171: - | W171: 0
A172: S | B172: 3 | C172: S | D172: 0 | E172: 3 | F172: 4 | G172: 1 | H172: 0 | I172: 0 | J172: 0 | K172: 0 | M172: Serviço | N172: Serviço | O172: - | P172: SINAPI | Q172: 98230 | R172: ESTACA BROCA DE CONCRETO, DIÂMETRO DE 30 CM, PROFUNDIDADE DE ATÉ 3 M, ESCAVAÇÃO MANUAL COM TRADO CONCHA, NÃO ARMADA. AF_03/2018 | S172: M | T172: 41.5 | W172: 0 | X172: Referência: AGETOP - 50302
A173: S | B173: 3 | C173: S | D173: 0 | E173: 3 | F173: 4 | G173: 1 | H173: 0 | I173: 0 | J173: 0 | K173: 0 | M173: Serviço | N173: Serviço | O173: - | P173: SINAPI | Q173: 96522 | R173: ESCAVAÇÃO MANUAL PARA BLOCO DE COROAMENTO OU SAPATA, SEM PREVISÃO DE FÔRMA. AF_06/2017 | S173: M3 | T173: 3.12 | W173: 0 | X173: Referência: AGETOP - 50901
A174: S | B174: 3 | C174: S | D174: 0 | E174: 3 | F174: 4 | G174: 1 | H174: 0 | I174: 0 | J174: 0 | K174: 0 | M174: Serviço | N174: Serviço | O174: - | P174: SINAPI | Q174: 96995 | R174: REATERRO MANUAL APILOADO COM SOQUETE. AF_10/2017 | S174: M3 | T174: 1.75 | W174: 0 | X174: Referência: AGETOP - 40902
A175: S | B175: 3 | C175: S | D175: 0 | E175: 3 | F175: 4 | G175: 1 | H175: 0 | I175: 0 | J175: 0 | K175: 0 | M175: Serviço | N175: Serviço | O175: - | P175: SINAPI | Q175: 94963 | R175: CONCRETO FCK = 15MPA, TRAÇO 1:3,4:3,5 (CIMENTO/ AREIA MÉDIA/ BRITA 1) - PREPARO MECÂNICO COM BETONEIRA 400 L. AF_07/2016 | S175: M3 | T175: 1.36 | W175: 0
A176: S | B176: 3 | C176: S | D176: 0 | E176: 3 | F176: 4 | G176: 1 | H176: 0 | I176: 0 | J176: 0 | K176: 0 | M176: Serviço | N176: Serviço | O176: - | P176: SINAPI | Q176: 74157/4 | R176: LANCAMENTO/APLICACAO MANUAL DE CONCRETO EM FUNDACOES | S176: M3 | T176: 1.37 | W176: 0 | X176: Referência: AGETOP - 51055
A177: S | B177: 3 | C177: S | D177: 0 | E177: 3 | F177: 4 | G177: 1 | H177: 0 | I177: 0 | J177: 0 | K177: 0 | M177: Serviço | N177: Serviço | O177: - | P177: SINAPI | Q177: 96544 | R177: ARMAÇÃO DE BLOCO, VIGA BALDRAME OU SAPATA UTILIZANDO AÇO CA-50 DE 6,3 MM - MONTAGEM. AF_06/2017 | S177: KG | T177: 19.09 | W177: 0 | X177: Referência: AGETOP - 52003
A178: S | B178: 3 | C178: S | D178: 0 | E178: 3 | F178: 4 | G178: 1 | H178: 0 | I178: 0 | J178: 0 | K178: 0 | M178: Serviço | N178: Serviço | O178: - | P178: SINAPI | Q178: 96545 | R178: ARMAÇÃO DE BLOCO, VIGA BALDRAME OU SAPATA UTILIZANDO AÇO CA-50 DE 8 MM - MONTAGEM. AF_06/2017 | S178: KG | T178: 62.73 | W178: 0 | X178: Referência: AGETOP - 52004
A179: S | B179: 3 | C179: S | D179: 0 | E179: 3 | F179: 4 | G179: 1 | H179: 0 | I179: 0 | J179: 0 | K179: 0 | M179: Serviço | N179: Serviço | O179: - | P179: SINAPI | Q179: 96546 | R179: ARMAÇÃO DE BLOCO, VIGA BALDRAME OU SAPATA UTILIZANDO AÇO CA-50 DE 10 MM - MONTAGEM. AF_06/2017 | S179: KG | T179: 11.82 | W179: 0 | X179: Referência: AGETOP - 52005
A180: S | B180: 3 | C180: S | D180: 0 | E180: 3 | F180: 4 | G180: 1 | H180: 0 | I180: 0 | J180: 0 | K180: 0 | M180: Serviço | N180: Serviço | O180: - | P180: SINAPI | Q180: 96543 | R180: ARMAÇÃO DE BLOCO, VIGA BALDRAME E SAPATA UTILIZANDO AÇO CA-60 DE 5 MM - MONTAGEM. AF_06/2017 | S180: KG | T180: 16.36 | W180: 0 | X180: Referência: AGETOP - 52014
A181: 3 | B181: 3 | C181: 3 | D181: 9 | E181: 3 | F181: 4 | G181: 2 | H181: 0 | I181: 0 | J181: 9 | K181: 24 | M181: Nível 3 | N181: Nível 3 | O181: - | P181: SINAPI | R181: VIGAS BALDRAMES | S181: - | W181: 0
A182: S | B182: 3 | C182: S | D182: 0 | E182: 3 | F182: 4 | G182: 2 | H182: 0 | I182: 0 | J182: 0 | K182: 0 | M182: Serviço | N182: Serviço | O182: - | P182: SINAPI | Q182: 96527 | R182: ESCAVAÇÃO MANUAL DE VALA PARA VIGA BALDRAME, COM PREVISÃO DE FÔRMA. AF_06/2017 | S182: M3 | T182: 3.99 | W182: 0 | X182: Referência: AGETOP - 40101
A183: S | B183: 3 | C183: S | D183: 0 | E183: 3 | F183: 4 | G183: 2 | H183: 0 | I183: 0 | J183: =IF(OR($C183="S",$C183=0),0,MATCH(0,OFFSET($D183,1,$C183,ROW($C$521)-ROW($C183)),0)) -> 0 | K183: =IF(OR($C183="S",$C183=0),0,MATCH(OFFSET($D183,0,$C183)+1,OFFSET($D183,1,$C183,ROW($C$521)-ROW($C183)),0)) -> 0 | M183: Serviço | N183: Serviço | O183: - | P183: SINAPI | Q183: 96995 | R183: REATERRO MANUAL APILOADO COM SOQUETE. AF_10/2017 | S183: M3 | T183: 2.25 | W183: 0 | X183: Referência: AGETOP - 40902
A184: S | B184: 3 | C184: S | D184: 0 | E184: 3 | F184: 4 | G184: 2 | H184: 0 | I184: 0 | J184: 0 | K184: 0 | M184: Serviço | N184: Serviço | O184: - | P184: AGETOP | Q184: 60191 | R184: FORMA DE TABUA CINTA BALDRAME U=8 VEZES | S184: m2 | T184: 30.65 | W184: 0
A185: S | B185: 3 | C185: S | D185: 0 | E185: 3 | F185: 4 | G185: 2 | H185: 0 | I185: 0 | J185: 0 | K185: 0 | M185: Serviço | N185: Serviço | O185: - | P185: SINAPI | Q185: 94963 | R185: CONCRETO FCK = 15MPA, TRAÇO 1:3,4:3,5 (CIMENTO/ AREIA MÉDIA/ BRITA 1) - PREPARO MECÂNICO COM BETONEIRA 400 L. AF_07/2016 | S185: M3 | T185: 1.74 | W185: 0
A186: S | B186: 3 | C186: S | D186: 0 | E186: 3 | F186: 4 | G186: 2 | H186: 0 | I186: 0 | J186: 0 | K186: 0 | M186: Serviço | N186: Serviço | O186: - | P186: SINAPI | Q186: 74157/4 | R186: LANCAMENTO/APLICACAO MANUAL DE CONCRETO EM FUNDACOES | S186: M3 | T186: 1.74 | W186: 0 | X186: Referência: AGETOP - 51055
A187: S | B187: 3 | C187: S | D187: 0 | E187: 3 | F187: 4 | G187: 2 | H187: 0 | I187: 0 | J187: 0 | K187: 0 | M187: Serviço | N187: Serviço | O187: - | P187: SINAPI | Q187: 96545 | R187: ARMAÇÃO DE BLOCO, VIGA BALDRAME OU SAPATA UTILIZANDO AÇO CA-50 DE 8 MM - MONTAGEM. AF_06/2017 | S187: KG | T187: 51.82 | W187: 0 | X187: Referência: AGETOP - 52004
A188: S | B188: 3 | C188: S | D188: 0 | E188: 3 | F188: 4 | G188: 2 | H188: 0 | I188: 0 | J188: 0 | K188: 0 | M188: Serviço | N188: Serviço | O188: - | P188: SINAPI | Q188: 96546 | R188: ARMAÇÃO DE BLOCO, VIGA BALDRAME OU SAPATA UTILIZANDO AÇO CA-50 DE 10 MM - MONTAGEM. AF_06/2017 | S188: KG | T188: 24.54 | W188: 0 | X188: Referência: AGETOP - 52005
A189: S | B189: 3 | C189: S | D189: 0 | E189: 3 | F189: 4 | G189: 2 | H189: 0 | I189: 0 | J189: 0 | K189: 0 | M189: Serviço | N189: Serviço | O189: - | P189: SINAPI | Q189: 96543 | R189: ARMAÇÃO DE BLOCO, VIGA BALDRAME E SAPATA UTILIZANDO AÇO CA-60 DE 5 MM - MONTAGEM. AF_06/2017 | S189: KG | T189: 40 | W189: 0 | X189: Referência: AGETOP - 52014
A190: 2 | B190: 2 | C190: 2 | D190: 19 | E190: 3 | F190: 5 | G190: 0 | H190: 0 | I190: 0 | J190: 91 | K190: 19 | M190: Nível 2 | N190: Nível 2 | O190: - | P190: SINAPI | R190: ESTRUTURA | S190: - | W190: 0
A191: 3 | B191: 3 | C191: 3 | D191: 6 | E191: 3 | F191: 5 | G191: 1 | H191: 0 | I191: 0 | J191: 18 | K191: 6 | M191: Nível 3 | N191: Nível 3 | O191: - | P191: SINAPI | R191: PILARES | S191: - | W191: 0
A192: S | B192: 3 | C192: S | D192: 0 | E192: 3 | F192: 5 | G192: 1 | H192: 0 | I192: 0 | J192: 0 | K192: 0 | M192: Serviço | N192: Serviço | O192: - | P192: SINAPI | Q192: 92426 | R192: MONTAGEM E DESMONTAGEM DE FÔRMA DE PILARES RETANGULARES E ESTRUTURAS SIMILARES COM ÁREA MÉDIA DAS SEÇÕES MENOR OU IGUAL A 0,25 M², PÉ-DIREITO SIMPLES, EM CHAPA DE MADEIRA COMPENSADA RESINADA, 8 UTILIZAÇÕES. AF_12/2015 | S192: M2 | T192: 16.37 | W192: 0
A193: S | B193: 3 | C193: S | D193: 0 | E193: 3 | F193: 5 | G193: 1 | H193: 0 | I193: 0 | J193: 0 | K193: 0 | M193: Serviço | N193: Serviço | O193: - | P193: SINAPI | Q193: 94964 | R193: CONCRETO FCK = 20MPA, TRAÇO 1:2,7:3 (CIMENTO/ AREIA MÉDIA/ BRITA 1) - PREPARO MECÂNICO COM BETONEIRA 400 L. AF_07/2016 | S193: M3 | T193: 0.79 | W193: 0
A194: S | B194: 3 | C194: S | D194: 0 | E194: 3 | F194: 5 | G194: 1 | H194: 0 | I194: 0 | J194: 0 | K194: 0 | M194: Serviço | N194: Serviço | O194: - | P194: SINAPI | Q194: 92873 | R194: LANÇAMENTO COM USO DE BALDES, ADENSAMENTO E ACABAMENTO DE CONCRETO EM ESTRUTURAS. AF_12/2015 | S194: M3 | T194: 0.79 | W194: 0 | X194: Referência: AGETOP - 60801
A195: S | B195: 3 | C195: S | D195: 0 | E195: 3 | F195: 5 | G195: 1 | H195: 0 | I195: 0 | J195: 0 | K195: 0 | M195: Serviço | N195: Serviço | O195: - | P195: SINAPI | Q195: 92778 | R195: ARMAÇÃO DE PILAR OU VIGA DE UMA ESTRUTURA CONVENCIONAL DE CONCRETO ARMADO EM UMA EDIFICAÇÃO TÉRREA OU SOBRADO UTILIZANDO AÇO CA-50 DE 10,0 MM - MONTAGEM. AF_12/2015 | S195: KG | T195: 70 | W195: 0 | X195: Referência: AGETOP - 60305
A196: S | B196: 3 | C196: S | D196: 0 | E196: 3 | F196: 5 | G196: 1 | H196: 0 | I196: 0 | J196: 0 | K196: 0 | M196: Serviço | N196: Serviço | O196: - | P196: SINAPI | Q196: 92775 | R196: ARMAÇÃO DE PILAR OU VIGA DE UMA ESTRUTURA CONVENCIONAL DE CONCRETO ARMADO EM UMA EDIFICAÇÃO TÉRREA OU SOBRADO UTILIZANDO AÇO CA-60 DE 5,0 MM - MONTAGEM. AF_12/2015 | S196: KG | T196: 24.55 | W196: 0 | X196: Referência: AGETOP - 60314
A197: 3 | B197: 3 | C197: 3 | D197: 8 | E197: 3 | F197: 5 | G197: 2 | H197: 0 | I197: 0 | J197: 12 | K197: 8 | M197: Nível 3 | N197: Nível 3 | O197: - | P197: SINAPI | R197: VIGAS DE COBERTURA | S197: - | W197: 0
A198: S | B198: 3 | C198: S | D198: 0 | E198: 3 | F198: 5 | G198: 2 | H198: 0 | I198: 0 | J198: 0 | K198: 0 | M198: Serviço | N198: Serviço | O198: - | P198: SINAPI | Q198: 92464 | R198: MONTAGEM E DESMONTAGEM DE FÔRMA DE VIGA, ESCORAMENTO METÁLICO, PÉ-DIREITO SIMPLES, EM CHAPA DE MADEIRA RESINADA, 8 UTILIZAÇÕES. AF_12/2015 | S198: M2 | T198: 27.32 | W198: 0 | X198: Referência: AGETOP - 60209
A199: S | B199: 3 | C199: S | D199: 0 | E199: 3 | F199: 5 | G199: 2 | H199: 0 | I199: 0 | J199: 0 | K199: 0 | M199: Serviço | N199: Serviço | O199: - | P199: SINAPI | Q199: 94964 | R199: CONCRETO FCK = 20MPA, TRAÇO 1:2,7:3 (CIMENTO/ AREIA MÉDIA/ BRITA 1) - PREPARO MECÂNICO COM BETONEIRA 400 L. AF_07/2016 | S199: M3 | T199: 1.63 | W199: 0
A200: S | B200: 3 | C200: S | D200: 0 | E200: 3 | F200: 5 | G200: 2 | H200: 0 | I200: 0 | J200: 0 | K200: 0 | M200: Serviço | N200: Serviço | O200: - | P200: SINAPI | Q200: 92873 | R200: LANÇAMENTO COM USO DE BALDES, ADENSAMENTO E ACABAMENTO DE CONCRETO EM ESTRUTURAS. AF_12/2015 | S200: M3 | T200: 1.63 | W200: 0 | X200: Referência: AGETOP - 60801
A201: S | B201: 3 | C201: S | D201: 0 | E201: 3 | F201: 5 | G201: 2 | H201: 0 | I201: 0 | J201: 0 | K201: 0 | M201: Serviço | N201: Serviço | O201: - | P201: SINAPI | Q201: 92777 | R201: ARMAÇÃO DE PILAR OU VIGA DE UMA ESTRUTURA CONVENCIONAL DE CONCRETO ARMADO EM UMA EDIFICAÇÃO TÉRREA OU SOBRADO UTILIZANDO AÇO CA-50 DE 8,0 MM - MONTAGEM. AF_12/2015 | S201: KG | T201: 5.45 | W201: 0 | X201: Referência: AGETOP - 60304
A202: S | B202: 3 | C202: S | D202: 0 | E202: 3 | F202: 5 | G202: 2 | H202: 0 | I202: 0 | J202: 0 | K202: 0 | M202: Serviço | N202: Serviço | O202: - | P202: SINAPI | Q202: 92778 | R202: ARMAÇÃO DE PILAR OU VIGA DE UMA ESTRUTURA CONVENCIONAL DE CONCRETO ARMADO EM UMA EDIFICAÇÃO TÉRREA OU SOBRADO UTILIZANDO AÇO CA-50 DE 10,0 MM - MONTAGEM. AF_12/2015 | S202: KG | T202: 76.36 | W202: 0 | X202: Referência: AGETOP - 60305
A203: S | B203: 3 | C203: S | D203: 0 | E203: 3 | F203: 5 | G203: 2 | H203: 0 | I203: 0 | J203: 0 | K203: 0 | M203: Serviço | N203: Serviço | O203: - | P203: SINAPI | Q203: 92779 | R203: ARMAÇÃO DE PILAR OU VIGA DE UMA ESTRUTURA CONVENCIONAL DE CONCRETO ARMADO EM UMA EDIFICAÇÃO TÉRREA OU SOBRADO UTILIZANDO AÇO CA-50 DE 12,5 MM - MONTAGEM. AF_12/2015 | S203: KG | T203: 19.09 | W203: 0
A204: S | B204: 3 | C204: S | D204: 0 | E204: 3 | F204: 5 | G204: 2 | H204: 0 | I204: 0 | J204: 0 | K204: 0 | M204: Serviço | N204: Serviço | O204: - | P204: SINAPI | Q204: 92775 | R204: ARMAÇÃO DE PILAR OU VIGA DE UMA ESTRUTURA CONVENCIONAL DE CONCRETO ARMADO EM UMA EDIFICAÇÃO TÉRREA OU SOBRADO UTILIZANDO AÇO CA-60 DE 5,0 MM - MONTAGEM. AF_12/2015 | S204: KG | T204: 27.27 | W204: 0 | X204: Referência: AGETOP - 60314
A205: 3 | B205: 3 | C205: 3 | D205: 2 | E205: 3 | F205: 5 | G205: 3 | H205: 0 | I205: 0 | J205: 4 | K205: 2 | M205: Nível 3 | N205: Nível 3 | O205: - | P205: SINAPI | R205: LAJE | S205: - | W205: 0
A206: S | B206: 3 | C206: S | D206: 0 | E206: 3 | F206: 5 | G206: 3 | H206: 0 | I206: 0 | J206: 0 | K206: 0 | M206: Serviço | N206: Serviço | O206: - | P206: SINAPI | Q206: 74202/1 | R206: LAJE PRE-MOLDADA P/FORRO, SOBRECARGA 100KG/M2, VAOS ATE 3,50M/E=8CM, C/LAJOTAS E CAP.C/CONC FCK=20MPA, 3CM, INTER-EIXO 38CM, C/ESCORAMENTO (REAPR.3X) E FERRAGEM NEGATIVA | S206: M2 | T206: 52.78 | W206: 0
... 388 more rows

Sheet Resumo
B3: UNIDADE ESCOLAR | G3: CÓDIGO INEP
B4: =Orçamento!$O$4 -> COLÉGIO ESTADUAL DA POLÍCIA MILITAR DE GOIÁS - GOIANIRA - JOSÉ SILVA OLIVEIRA | G4: =Orçamento!V4 -> 52096939
B6: OBRA | G6: CIDADE
B7: =Orçamento!$O$7 -> REFORMA E AMPLIAÇÃO | G7: =Orçamento!$V$7 -> GOIANIRA
B9: ENDEREÇO | G9: CRE
B10: =Orçamento!$R$10 -> Rua 28 c/ Rua 20 S/N, TRIUNFO I, CEP:75370-000 | G10: =Orçamento!$O$10 -> INHUMAS
B12: REFERÊNCIA | D12: DATA | G12: ÁREA TOTAL CONSTRUÍDA (M²)
B13: =CONCATENATE("AGETOP E SINAPI - ",Orçamento!$W$10) -> AGETOP E SINAPI - ONERADA | D13: =Orçamento!$S$7 -> 2019-05-21 | G13: =Orçamento!$S$13 -> 3204.22
A14: FILTRO
B15: RESUMO GERAL DO ORÇAMENTO
A16: ↓ | B16: ITEM | C16: DESCRIÇÃO DOS SERVIÇOS | E16: UNID | F16: QUANT | G16: PREÇO SEM BDI | H16: PREÇO COM BDI | I16: PARTICIP. (%)
A17: =IF(E17>0,"F","") -> F | B17: 1. | C17: =Orçamento!$P574 -> REFORMA | E17: UN | F17: 1 | G17: =IFERROR(Orçamento!S574,"-") -> 0 | H17: =IFERROR(Orçamento!V574,"") -> 0 | I17: =Orçamento!X574 -> 
A18: =IF(E18>0,"F","") -> F | B18: 2. | C18: =Orçamento!$P575 -> CENTRAL DE GÁS | E18: UN | F18: 1 | G18: =IFERROR(Orçamento!S575,"-") -> 0 | H18: =IFERROR(Orçamento!V575,"") -> 0 | I18: =Orçamento!X575 -> 
A19: F | B19: 3. | C19: =Orçamento!$P576 -> BLOCO 1 SALA PADRÃO SEDUC 2017 - LAJE | E19: UN | F19: 1 | G19: =IFERROR(Orçamento!S576,"-") -> 0 | H19: =IFERROR(Orçamento!V576,"") -> 0 | I19: =Orçamento!X576 -> 
A20: F | B20: 4. | C20: =Orçamento!$P577 -> BLOCO 3 SALAS PADRÃO SEDUC 2017 - LAJE | E20: UN | F20: 1 | G20: =IFERROR(Orçamento!S577,"-") -> 0 | H20: =IFERROR(Orçamento!V577,"") -> 0 | I20: =Orçamento!X577 -> 
A21: F | B21: 5. | C21: =Orçamento!$P578 -> BLOCO 3 SALAS PADRÃO SEDUC 2017 - LAJE. | E21: UN | F21: 1 | G21: =IFERROR(Orçamento!S578,"-") -> 0 | H21: =IFERROR(Orçamento!V578,"") -> 0 | I21: =Orçamento!X578 -> 
B22: 6. | C22: =Orçamento!$P579 ->  | G22: =IFERROR(Orçamento!S579,"-") -> 0 | H22: =IFERROR(Orçamento!V579,"") -> 0 | I22: =Orçamento!X579 -> 
B23: 7. | C23: =Orçamento!$P580 ->  | G23: =IFERROR(Orçamento!S580,"-") -> 0 | H23: =IFERROR(Orçamento!V580,"") -> 0 | I23: =Orçamento!X580 -> 
B24: 8. | C24: =Orçamento!$P581 ->  | G24: =IFERROR(Orçamento!S581,"-") -> 0 | H24: =IFERROR(Orçamento!V581,"") -> 0 | I24: =Orçamento!X581 -> 
B25: 9. | C25: =Orçamento!$P582 ->  | G25: =IFERROR(Orçamento!S582,"-") -> 0 | H25: =IFERROR(Orçamento!V582,"") -> 0 | I25: =Orçamento!X582 -> 
B26: 10. | C26: =Orçamento!$P583 ->  | G26: =IFERROR(Orçamento!S583,"-") -> 0 | H26: =IFERROR(Orçamento!V583,"") -> 0 | I26: =Orçamento!X583 -> 
B27: 11. | C27: =Orçamento!$P584 ->  | G27: =IFERROR(Orçamento!S584,"-") -> 0 | H27: =IFERROR(Orçamento!V584,"") -> 0 | I27: =Orçamento!X584 -> 
B28: 12. | C28: =Orçamento!$P585 ->  | G28: =IFERROR(Orçamento!S585,"-") -> 0 | H28: =IFERROR(Orçamento!V585,"") -> 0 | I28: =Orçamento!X585 -> 
B29: 13. | C29: =Orçamento!$P586 ->  | G29: =IFERROR(Orçamento!S586,"-") -> 0 | H29: =IFERROR(Orçamento!V586,"") -> 0 | I29: =Orçamento!X586 -> 
B30: 14. | C30: =Orçamento!$P587 ->  | G30: =IFERROR(Orçamento!S587,"-") -> 0 | H30: =IFERROR(Orçamento!V587,"") -> 0 | I30: =Orçamento!X587 -> 
B31: 15. | C31: =Orçamento!$P588 ->  | G31: =IFERROR(Orçamento!S588,"-") -> 0 | H31: =IFERROR(Orçamento!V588,"") -> 0 | I31: =Orçamento!X588 -> 
B32: 16. | C32: =Orçamento!$P589 ->  | G32: =IFERROR(Orçamento!S589,"-") -> 0 | H32: =IFERROR(Orçamento!V589,"") -> 0 | I32: =Orçamento!X589 -> 
B33: 17. | C33: =Orçamento!$P590 ->  | G33: =IFERROR(Orçamento!S590,"-") -> 0 | H33: =IFERROR(Orçamento!V590,"") -> 0 | I33: =Orçamento!X590 -> 
B34: 18. | C34: =Orçamento!$P591 ->  | G34: =IFERROR(Orçamento!S591,"-") -> 0 | H34: =IFERROR(Orçamento!V591,"") -> 0 | I34: =Orçamento!X591 -> 
B35: 19. | C35: =Orçamento!$P592 ->  | G35: =IFERROR(Orçamento!S592,"-") -> 0 | H35: =IFERROR(Orçamento!V592,"") -> 0 | I35: =Orçamento!X592 -> 
B36: 20. | C36: =Orçamento!$P593 ->  | G36: =IFERROR(Orçamento!S593,"-") -> 0 | H36: =IFERROR(Orçamento!V593,"") -> 0 | I36: =Orçamento!X593 -> 
A37: F | B37: TOTAL GERAL DO ORÇAMENTO (R$) | G37: =SUM(G17:G36) -> 0 | H37: 0 | I37: =SUM(I17:I36) -> 
A38: F
A39: F

Sheet Somatório
B3: UNIDADE ESCOLAR | E3: CÓDIGO INEP
B4: =Orçamento!$O$4 -> COLÉGIO ESTADUAL DA POLÍCIA MILITAR DE GOIÁS - GOIANIRA - JOSÉ SILVA OLIVEIRA | E4: =Orçamento!V4 -> 52096939
B6: OBRA | E6: CIDADE
B7: =Orçamento!$O$7 -> REFORMA E AMPLIAÇÃO | E7: =Orçamento!$V$7 -> GOIANIRA
B9: ENDEREÇO | E9: CRE
B10: =Orçamento!$R$10 -> Rua 28 c/ Rua 20 S/N, TRIUNFO I, CEP:75370-000 | E10: =Orçamento!$O$10 -> INHUMAS
B12: REFERÊNCIA | D12: DATA | E12: ÁREA TOTAL CONSTRUÍDA (M²)
B13: =CONCATENATE("AGETOP E SINAPI - ",Orçamento!$W$10) -> AGETOP E SINAPI - ONERADA | D13: =Orçamento!$S$7 -> 2019-05-21 | E13: =Orçamento!$S$13 -> 3204.22
A14: FILTRO
B15: SOMATÓRIO DE SERVIÇOS
A16: ↓ | B16: ITEM | C16: DESCRIÇÃO DOS SERVIÇOS | D16: PREÇO SEM BDI (R$) | E16: PREÇO COM BDI (R$) | F16: PARTIC. ( % )
A17: =IF(D17>0,"F","") ->  | B17: a. | C17: =Orçamento!P540 -> SERVIÇOS PRELIMINARES | D17: =Orçamento!S540 -> 0 | E17: =Orçamento!V540 -> 0 | F17: =Orçamento!X540 -> 0
A18: =IF(D18>0,"F","") ->  | B18: b. | C18: =Orçamento!P541 -> TRANSPORTES | D18: =Orçamento!S541 -> 0 | E18: =Orçamento!V541 -> 0 | F18: =Orçamento!X541 -> 0
B19: c. | C19: =Orçamento!P542 -> SERVIÇO EM TERRA | D19: =Orçamento!S542 -> 0 | E19: =Orçamento!V542 -> 0 | F19: =Orçamento!X542 -> 0
B20: d. | C20: =Orçamento!P543 -> FUNDAÇÕES E SONDAGENS | D20: =Orçamento!S543 -> 0 | E20: =Orçamento!V543 -> 0 | F20: =Orçamento!X543 -> 0
B21: e. | C21: =Orçamento!P544 -> ESTRUTURA | D21: =Orçamento!S544 -> 0 | E21: =Orçamento!V544 -> 0 | F21: =Orçamento!X544 -> 0
B22: f. | C22: =Orçamento!P545 -> INSTALAÇÕES ELÉTRICAS | D22: =Orçamento!S545 -> 0 | E22: =Orçamento!V545 -> 0 | F22: =Orçamento!X545 -> 0
B23: g. | C23: =Orçamento!P546 -> INSTALAÇÕES HIDROSSANITÁRIAS | D23: =Orçamento!S546 -> 0 | E23: =Orçamento!V546 -> 0 | F23: =Orçamento!X546 -> 0
B24: h. | C24: =Orçamento!P547 -> INSTALAÇÕES ESPECIAIS | D24: =Orçamento!S547 -> 0 | E24: =Orçamento!V547 -> 0 | F24: =Orçamento!X547 -> 0
B25: i. | C25: =Orçamento!P548 -> ALVENARIAS E DIVISÓRIAS | D25: =Orçamento!S548 -> 0 | E25: =Orçamento!V548 -> 0 | F25: =Orçamento!X548 -> 0
B26: j. | C26: =Orçamento!P549 -> ALVENARIA AUTO-PORTANTE | D26: =Orçamento!S549 -> 0 | E26: =Orçamento!V549 -> 0 | F26: =Orçamento!X549 -> 0
B27: k. | C27: =Orçamento!P550 -> IMPERMEABILIZAÇÃO | D27: =Orçamento!S550 -> 0 | E27: =Orçamento!V550 -> 0 | F27: =Orçamento!X550 -> 0
B28: l. | C28: =Orçamento!P551 -> ISOLAMENTO TÉRMICO E ACÚSTICO | D28: =Orçamento!S551 -> 0 | E28: =Orçamento!V551 -> 0 | F28: =Orçamento!X551 -> 0
B29: m. | C29: =Orçamento!P552 -> ESTRUTURA DE MADEIRA | D29: =Orçamento!S552 -> 0 | E29: =Orçamento!V552 -> 0 | F29: =Orçamento!X552 -> 0
B30: n. | C30: =Orçamento!P553 -> ESTRUTURAS METÁLICAS | D30: =Orçamento!S553 -> 0 | E30: =Orçamento!V553 -> 0 | F30: =Orçamento!X553 -> 0
B31: o. | C31: =Orçamento!P554 -> COBERTURAS | D31: =Orçamento!S554 -> 0 | E31: =Orçamento!V554 -> 0 | F31: =Orçamento!X554 -> 0
B32: p. | C32: =Orçamento!P555 -> ESQUADRIAS DE MADEIRA | D32: =Orçamento!S555 -> 0 | E32: =Orçamento!V555 -> 0 | F32: =Orçamento!X555 -> 0
B33: q. | C33: =Orçamento!P556 -> ESQUADRIAS METÁLICAS | D33: =Orçamento!S556 -> 0 | E33: =Orçamento!V556 -> 0 | F33: =Orçamento!X556 -> 0
B34: r. | C34: =Orçamento!P557 -> VIDROS | D34: =Orçamento!S557 -> 0 | E34: =Orçamento!V557 -> 0 | F34: =Orçamento!X557 -> 0
B35: s. | C35: =Orçamento!P558 -> REVESTIMENTO DE PAREDE | D35: =Orçamento!S558 -> 0 | E35: =Orçamento!V558 -> 0 | F35: =Orçamento!X558 -> 0
B36: t. | C36: =Orçamento!P559 -> FORROS | D36: =Orçamento!S559 -> 0 | E36: =Orçamento!V559 -> 0 | F36: =Orçamento!X559 -> 0
B37: u. | C37: =Orçamento!P560 -> REVESTIMENTO DE PISO | D37: =Orçamento!S560 -> 0 | E37: =Orçamento!V560 -> 0 | F37: =Orçamento!X560 -> 0
B38: v. | C38: =Orçamento!P561 -> FERRAGENS | D38: =Orçamento!S561 -> 0 | E38: =Orçamento!V561 -> 0 | F38: =Orçamento!X561 -> 0
B39: w. | C39: =Orçamento!P562 -> MARCENARIA | D39: =Orçamento!S562 -> 0 | E39: =Orçamento!V562 -> 0 | F39: =Orçamento!X562 -> 0
B40: x. | C40: =Orçamento!P563 -> ADMINISTRAÇÃO | D40: =Orçamento!S563 -> 0 | E40: =Orçamento!V563 -> 0 | F40: =Orçamento!X563 -> 0
B41: y. | C41: =Orçamento!P564 -> PINTURA | D41: =Orçamento!S564 -> 0 | E41: =Orçamento!V564 -> 0 | F41: =Orçamento!X564 -> 0
B42: z. | C42: =Orçamento!P565 -> DIVERSOS | D42: =Orçamento!S565 -> 0 | E42: =Orçamento!V565 -> 0 | F42: =Orçamento!X565 -> 0
A43: F | B43: TOTAL GERAL DO ORÇAMENTO | D43: =SUM(D17:D42) -> 0 | E43: =SUM(E17:E42) -> 0 | F43: =SUM(F17:F42) -> 0
B45: (*) Para itens da AGETOP, os vidros não estão inclusos nas esquadrias e já foram considerados os custos de contramarco para as esquadrias de alumínio;

Sheet Cronog_60_Dias
B3: UNIDADE ESCOLAR | I3: PRAZO
B4: =Orçamento!$O$4 -> COLÉGIO ESTADUAL DA POLÍCIA MILITAR DE GOIÁS - GOIANIRA - JOSÉ SILVA OLIVEIRA | I4: 60 DIAS CORRIDOS
B6: OBRA | I6: DATA
B7: =Orçamento!$O$7 -> REFORMA E AMPLIAÇÃO | I7: =Orçamento!$S$7 -> 2019-05-21
B9: LOCAL | I9: ÁREA TOTAL CONSTRUÍDA (M²)
A10: FILTRO | B10: =Orçamento!$V$7 -> GOIANIRA | I10: =Orçamento!$S$13 -> 3204.22
B12: CRONOGRAMA - FÍSICO FINANCEIRO
A13: ↓ | B13: CUSTO TOTAL: | C13: =D93 -> 0 | D13: VALOR | E13: Dias: | F13: 30 | J13: 60 | N13: TOTAL
B14: DESCRIÇÃO DOS SERVIÇOS | E14: % | F14: 1ª PARCELA | J14: 2ª PARCELA
A15: =IF(D15>0,"F","") ->  | B15: SERVIÇOS PRELIMINARES | D15: =Orçamento!V540 -> 0 | E15: =Orçamento!X540 -> 0 | F15: =ROUND(F17*$D$15,2) -> 0 | J15: =ROUND(J17*$D$15,2) -> 0 | N15: =SUM(F15:M15) -> 0 | P15: =IF(N15=D15,"OK","ERRO") -> OK
A16: =IF(A15="F",A15,"") -> 
A17: =IF(A16="F",A16,"") ->  | F17: 1 | J17: =1-F17 -> 0 | N17: =IFERROR(E15/100,"") -> 0
A18: =IF(D18>0,"F","") ->  | B18: TRANSPORTES | D18: =Orçamento!V541 -> 0 | E18: =Orçamento!X541 -> 0 | F18: =ROUND(F20*$D$18,2) -> 0 | J18: =ROUND(J20*$D$18,2) -> 0 | N18: =SUM(F18:M18) -> 0 | P18: =IF(N18=D18,"OK","ERRO") -> OK
A19: =IF(A18="F",A18,"") -> 
A20: =IF(A19="F",A19,"") ->  | F20: 0.48 | J20: =1-F20 -> 0.52 | N20: =IFERROR(E18/100,"") -> 0
A21: =IF(D21>0,"F","") ->  | B21: SERVIÇO EM TERRA | D21: =Orçamento!V542 -> 0 | E21: =Orçamento!X542 -> 0 | F21: =ROUND(F23*$D$21,2) -> 0 | J21: =ROUND(J23*$D$21,2) -> 0 | N21: =SUM(F21:M21) -> 0 | P21: =IF(N21=D21,"OK","ERRO") -> OK
A22: =IF(A21="F",A21,"") -> 
A23: =IF(A22="F",A22,"") ->  | F23: 1 | J23: =1-F23 -> 0 | N23: =IFERROR(E21/100,"") -> 0
A24: =IF(D24>0,"F","") ->  | B24: FUNDAÇÕES E SONDAGENS | D24: =Orçamento!V543 -> 0 | E24: =Orçamento!X543 -> 0 | F24: =ROUND(F26*$D$24,2) -> 0 | J24: =ROUND(J26*$D$24,2) -> 0 | N24: =SUM(F24:M24) -> 0 | P24: =IF(N24=D24,"OK","ERRO") -> OK
A25: =IF(A24="F",A24,"") -> 
A26: =IF(A25="F",A25,"") ->  | F26: 1 | J26: =1-F26 -> 0 | N26: =IFERROR(E24/100,"") -> 0
A27: =IF(D27>0,"F","") ->  | B27: ESTRUTURA | D27: =Orçamento!V544 -> 0 | E27: =Orçamento!X544 -> 0 | F27: =ROUND(F29*$D$27,2) -> 0 | J27: =ROUND(J29*$D$27,2) -> 0 | N27: =SUM(F27:M27) -> 0 | P27: =IF(N27=D27,"OK","ERRO") -> OK
A28: =IF(A27="F",A27,"") -> 
A29: =IF(A28="F",A28,"") ->  | F29: 0.49 | J29: =1-F29 -> 0.51 | N29: =IFERROR(E27/100,"") -> 0
A30: =IF(D30>0,"F","") ->  | B30: INST.ELET/TELEFÔNICA/CABEAMENTO ESTRUTURADO | D30: =Orçamento!V545 -> 0 | E30: =Orçamento!X545 -> 0 | F30: =ROUND(F32*$D$30,2) -> 0 | J30: =ROUND(J32*$D$30,2) -> 0 | N30: =SUM(F30:M30) -> 0 | P30: =IF(N30=D30,"OK","ERRO") -> OK
A31: =IF(A30="F",A30,"") -> 
A32: =IF(A31="F",A31,"") ->  | F32: 0.4 | J32: =1-F32 -> 0.6 | N32: =IFERROR(E30/100,"") -> 0
A33: =IF(D33>0,"F","") ->  | B33: INSTALAÇÕES HIDROSSANITÁRIAS | D33: =Orçamento!V546 -> 0 | E33: =Orçamento!X546 -> 0 | F33: =ROUND(F35*$D$33,2) -> 0 | J33: =ROUND(J35*$D$33,2) -> 0 | N33: =SUM(F33:M33) -> 0 | P33: =IF(N33=D33,"OK","ERRO") -> OK
A34: =IF(A33="F",A33,"") -> 
A35: =IF(A34="F",A34,"") ->  | F35: 0.48 | J35: =1-F35 -> 0.52 | N35: =IFERROR(E33/100,"") -> 0
A36: =IF(D36>0,"F","") ->  | B36: INSTALAÇÕES ESPECIAIS | D36: =Orçamento!V547 -> 0 | E36: =Orçamento!X547 -> 0 | F36: =ROUND(F38*$D$36,2) -> 0 | J36: =ROUND(J38*$D$36,2) -> 0 | N36: =SUM(F36:M36) -> 0 | P36: =IF(N36=D36,"OK","ERRO") -> OK
A37: =IF(A36="F",A36,"") -> 
A38: =IF(A37="F",A37,"") ->  | F38: 1 | J38: =1-F38 -> 0 | N38: =IFERROR(E36/100,"") -> 0
A39: =IF(D39>0,"F","") ->  | B39: ALVENARIA E DIVISÓRIAS | D39: =Orçamento!V548 -> 0 | E39: =Orçamento!X548 -> 0 | F39: =ROUND(F41*$D$39,2) -> 0 | J39: =ROUND(J41*$D$39,2) -> 0 | N39: =SUM(F39:M39) -> 0 | P39: =IF(N39=D39,"OK","ERRO") -> OK
A40: =IF(A39="F",A39,"") -> 
A41: =IF(A40="F",A40,"") ->  | F41: 1 | J41: =1-F41 -> 0 | N41: =IFERROR(E39/100,"") -> 0
A42: =IF(D42>0,"F","") ->  | B42: ALVENARIA AUTO-PORTANTE | D42: =Orçamento!V549 -> 0 | E42: =Orçamento!X549 -> 0 | F42: =ROUND(F44*$D$42,2) -> 0 | J42: =ROUND(J44*$D$42,2) -> 0 | N42: =SUM(F42:M42) -> 0
A43: =IF(A42="F",A42,"") -> 
A44: =IF(A43="F",A43,"") ->  | F44: 1 | J44: =1-F44 -> 0 | N44: =IFERROR(E42/100,"") -> 0
A45: =IF(D45>0,"F","") ->  | B45: IMPERMEABILIZAÇÃO | D45: =Orçamento!V550 -> 0 | E45: =Orçamento!X550 -> 0 | F45: =ROUND(F47*$D$45,2) -> 0 | J45: =ROUND(J47*$D$45,2) -> 0 | N45: =SUM(F45:M45) -> 0 | P45: =IF(N45=D45,"OK","ERRO") -> OK
A46: =IF(A45="F",A45,"") -> 
A47: =IF(A46="F",A46,"") ->  | F47: 1 | J47: =1-F47 -> 0 | N47: =IFERROR(E45/100,"") -> 0
A48: =IF(D48>0,"F","") ->  | B48: ISOLAMENTO TÉRMICO E ACÚSTICO | D48: =Orçamento!V551 -> 0 | E48: =Orçamento!X551 -> 0 | F48: =ROUND(F50*$D$48,2) -> 0 | J48: =ROUND(J50*$D$48,2) -> 0 | N48: =SUM(F48:M48) -> 0
A49: =IF(A48="F",A48,"") -> 
A50: =IF(A49="F",A49,"") ->  | F50: 0.5 | J50: =1-F50 -> 0.5 | N50: =IFERROR(E48/100,"") -> 0
A51: =IF(D51>0,"F","") ->  | B51: ESTRUTURA DE MADEIRA | D51: =Orçamento!V552 -> 0 | E51: =Orçamento!X552 -> 0 | F51: =ROUND(F53*$D$51,2) -> 0 | J51: =ROUND(J53*$D$51,2) -> 0 | N51: =SUM(F51:M51) -> 0
A52: =IF(A51="F",A51,"") -> 
A53: =IF(A52="F",A52,"") ->  | F53: 0.4 | J53: =1-F53 -> 0.6 | N53: =IFERROR(E51/100,"") -> 0
A54: =IF(D54>0,"F","") ->  | B54: ESTRUTURA METÁLICA | D54: =Orçamento!V553 -> 0 | E54: =Orçamento!X553 -> 0 | F54: =ROUND(F56*$D$54,2) -> 0 | J54: =ROUND(J56*$D$54,2) -> 0 | N54: =SUM(F54:M54) -> 0 | P54: =IF(N54=D54,"OK","ERRO") -> OK
A55: =IF(A54="F",A54,"") -> 
A56: =IF(A55="F",A55,"") ->  | F56: 0.35 | J56: =1-F56 -> 0.65 | N56: =IFERROR(E54/100,"") -> 0
A57: =IF(D57>0,"F","") ->  | B57: COBERTURAS | D57: =Orçamento!V554 -> 0 | E57: =Orçamento!X554 -> 0 | F57: =ROUND(F59*$D$57,2) -> 0 | J57: =ROUND(J59*$D$57,2) -> 0 | N57: =SUM(F57:M57) -> 0 | P57: =IF(N57=D57,"OK","ERRO") -> OK
A58: =IF(A57="F",A57,"") -> 
A59: =IF(A58="F",A58,"") ->  | F59: 0 | J59: =1-F59 -> 1 | N59: =IFERROR(E57/100,"") -> 0
A60: =IF(D60>0,"F","") ->  | B60: ESQUADRIAS DE MADEIRA | D60: =Orçamento!V555 -> 0 | E60: =Orçamento!X555 -> 0 | F60: =ROUND(F62*$D$60,2) -> 0 | J60: =ROUND(J62*$D$60,2) -> 0 | N60: =SUM(F60:M60) -> 0
A61: =IF(A60="F",A60,"") -> 
A62: =IF(A61="F",A61,"") ->  | F62: 0.54 | J62: =1-F62 -> 0.46 | N62: =IFERROR(E60/100,"") -> 0
A63: =IF(D63>0,"F","") ->  | B63: ESQUADRIAS METÁLICAS | D63: =Orçamento!V556 -> 0 | E63: =Orçamento!X556 -> 0 | F63: =ROUND(F65*$D$63,2) -> 0 | J63: =ROUND(J65*$D$63,2) -> 0 | N63: =SUM(F63:M63) -> 0 | P63: =IF(N63=D63,"OK","ERRO") -> OK
A64: =IF(A63="F",A63,"") -> 
A65: =IF(A64="F",A64,"") ->  | F65: 0.49 | J65: =1-F65 -> 0.51 | N65: =IFERROR(E63/100,"") -> 0
A66: =IF(D66>0,"F","") ->  | B66: VIDROS | D66: =Orçamento!V557 -> 0 | E66: =Orçamento!X557 -> 0 | F66: =ROUND(F68*$D$66,2) -> 0 | J66: =ROUND(J68*$D$66,2) -> 0 | N66: =SUM(F66:M66) -> 0 | P66: =IF(N66=D66,"OK","ERRO") -> OK
A67: =IF(A66="F",A66,"") -> 
A68: =IF(A67="F",A67,"") ->  | F68: 0 | J68: =1-F68 -> 1 | N68: =IFERROR(E66/100,"") -> 0
A69: =IF(D69>0,"F","") ->  | B69: REVESTIMENTO DE PAREDE | D69: =Orçamento!V558 -> 0 | E69: =Orçamento!X558 -> 0 | F69: =ROUND(F71*$D$69,2) -> 0 | J69: =ROUND(J71*$D$69,2) -> 0 | N69: =SUM(F69:M69) -> 0 | P69: =IF(N69=D69,"OK","ERRO") -> OK
A70: =IF(A69="F",A69,"") -> 
A71: =IF(A70="F",A70,"") ->  | F71: 0.32 | J71: =1-F71 -> 0.68 | N71: =IFERROR(E69/100,"") -> 0
A72: =IF(D72>0,"F","") ->  | B72: FORROS | D72: =Orçamento!V559 -> 0 | E72: =Orçamento!X559 -> 0 | F72: =ROUND(F74*$D$72,2) -> 0 | J72: =ROUND(J74*$D$72,2) -> 0 | N72: =SUM(F72:M72) -> 0 | P72: =IF(N72=D72,"OK","ERRO") -> OK
A73: =IF(A72="F",A72,"") -> 
A74: =IF(A73="F",A73,"") ->  | F74: 0.24 | J74: =1-F74 -> 0.76 | N74: =IFERROR(E72/100,"") -> 0
A75: =IF(D75>0,"F","") ->  | B75: REVESTIMENTO DE PISO | D75: =Orçamento!V560 -> 0 | E75: =Orçamento!X560 -> 0 | F75: =ROUND(F77*$D$75,2) -> 0 | J75: =ROUND(J77*$D$75,2) -> 0 | N75: =SUM(F75:M75) -> 0 | P75: =IF(N75=D75,"OK","ERRO") -> OK
A76: =IF(A75="F",A75,"") -> 
A77: =IF(A76="F",A76,"") ->  | F77: 0.49 | J77: =1-F77 -> 0.51 | N77: =IFERROR(E75/100,"") -> 0
A78: =IF(D78>0,"F","") ->  | B78: FERRAGENS | D78: =Orçamento!V561 -> 0 | E78: =Orçamento!X561 -> 0 | F78: =ROUND(F80*$D$78,2) -> 0 | J78: =ROUND(J80*$D$78,2) -> 0 | N78: =SUM(F78:M78) -> 0
A79: =IF(A78="F",A78,"") -> 
A80: =IF(A79="F",A79,"") ->  | F80: 0 | J80: =1-F80 -> 1 | N80: =IFERROR(E78/100,"") -> 0
A81: =IF(D81>0,"F","") ->  | B81: MARCENARIA | D81: =Orçamento!V562 -> 0 | E81: =Orçamento!X562 -> 0 | F81: =ROUND(F83*$D$81,2) -> 0 | J81: =ROUND(J83*$D$81,2) -> 0 | N81: =SUM(F81:M81) -> 0 | P81: =IF(N81=D81,"OK","ERRO") -> OK
A82: =IF(A81="F",A81,"") -> 
A83: =IF(A82="F",A82,"") ->  | F83: 0.4 | J83: =1-F83 -> 0.6 | N83: =IFERROR(E81/100,"") -> 0
A84: =IF(D84>0,"F","") ->  | B84: ADMINISTRAÇÃO - MENSALISTAS | D84: =Orçamento!V563 -> 0 | E84: =Orçamento!X563 -> 0 | F84: =ROUND(F86*$D$84,2) -> 0 | J84: =ROUND(J86*$D$84,2) -> 0 | N84: =SUM(F84:M84) -> 0 | P84: =IF(N84=D84,"OK","ERRO") -> OK
A85: =IF(A84="F",A84,"") -> 
A86: =IF(A85="F",A85,"") ->  | F86: 0.49 | J86: =1-F86 -> 0.51 | N86: =IFERROR(E84/100,"") -> 0
A87: =IF(D87>0,"F","") ->  | B87: PINTURA | D87: =Orçamento!V564 -> 0 | E87: =Orçamento!X564 -> 0 | F87: =ROUND(F89*$D$87,2) -> 0 | J87: =ROUND(J89*$D$87,2) -> 0 | N87: =SUM(F87:M87) -> 0 | P87: =IF(N87=D87,"OK","ERRO") -> OK
A88: =IF(A87="F",A87,"") -> 
A89: =IF(A88="F",A88,"") ->  | F89: 0 | J89: =1-F89 -> 1 | N89: =IFERROR(E87/100,"") -> 0
A90: =IF(D90>0,"F","") ->  | B90: DIVERSOS | D90: =Orçamento!V565 -> 0 | E90: =Orçamento!X565 -> 0 | F90: =ROUND(F92*$D$90,2) -> 0 | J90: =ROUND(J92*$D$90,2) -> 0 | N90: =SUM(F90:M90) -> 0 | P90: =IF(N90=D90,"OK","ERRO") -> OK
A91: =IF(A90="F",A90,"") -> 
A92: =IF(A91="F",A91,"") ->  | F92: 0.46 | J92: =1-F92 -> 0.54 | N92: =IFERROR(E90/100,"") -> 0
A93: F | B93: CUSTO DO ORÇAMENTO | D93: =SUM(D15:D92) -> 0 | E93: =SUM(E15:E92) -> 0 | F93: =F15+F18+F21+F24+F27+F30+F33+F36+F39+F42+F45+F48+F51+F54+F57+F60+F63+F66+F69+F72+F75+F78+F81+F84+F87+F90 -> 0 | J93: =J15+J18+J21+J24+J27+J30+J33+J36+J39+J42+J45+J48+J51+J54+J57+J60+J63+J66+J69+J72+J75+J78+J81+J84+J87+J90 -> 0 | N93: =N15+N18+N21+N24+N27+N30+N33+N36+N39+N42+N45+N48+N51+N54+N57+N60+N63+N66+N69+N72+N75+N78+N81+N84+N87+N90 -> 0
A94: F | B94: PERCENTUAIS: | F94: =IFERROR(F93/D93,"") ->  | J94: =IFERROR(J93/D93,"") ->  | N94: =SUM(F94:M94) -> 0
A95: F | B95: TOTAIS ACUMULADOS: | F95: =F93 -> 0 | J95: =F95+J93 -> 0
A96: F | B96: PERCENTUAIS ACUMULADOS: | F96: =F94 ->  | J96: =IFERROR(F96+J94,"") -> 
A97: F
A98: F | B98: OBSERVAÇÕES:
A99: F | B99: Os pagamentos somente poderão ser efetuados mediante medição e atesto pelos técnicos da Secretaria da Educação.

Sheet Composição BDI
A3: UNIDADE ESCOLAR
A4: =Orçamento!$O$4 -> COLÉGIO ESTADUAL DA POLÍCIA MILITAR DE GOIÁS - GOIANIRA - JOSÉ SILVA OLIVEIRA
A6: OBRA
A7: =Orçamento!$O$7 -> REFORMA E AMPLIAÇÃO
A9: ENDEREÇO
A10: =Orçamento!$R$10 -> Rua 28 c/ Rua 20 S/N, TRIUNFO I, CEP:75370-000
A12: CIDADE
A13: =Orçamento!$V$7 -> GOIANIRA
A15: CRE
A16: =Orçamento!$O$10 -> INHUMAS
A18: DETALHAMENTO DA COMPOSIÇÃO DE BDI
A19: COMPOSIÇÃO BDI PARA OBRAS CIVIS | F19: BDI CONSTRUÇÃO E REFORMA
A20: DESCRIÇÃO | B20: COEF. | C20: TAXA % (a.m) | D20: % no preço de venda | F20: Situação | G20: 1º Quartil | H20: Médio | I20: 3º Quartil
A21: 1) COFINS | B21: 1 | C21: 0.03 | D21: =C21 -> 0.03 | F21: =IF(OR(C21<G21,C21>I21),"FORA DO INTERVALO","OK") -> OK | G21: 0.03 | H21: 0.03 | I21: 0.03
A22: 2) PIS | B22: 1 | C22: 0.0065 | D22: =C22 -> 0.0065 | F22: =IF(OR(C22<G22,C22>I22),"FORA DO INTERVALO","OK") -> OK | G22: 0.0065 | H22: 0.0065 | I22: 0.0065
A23: 3) ISSQN | B23: 1 | C23: 0.05 | D23: =C23*B23 -> 0.05 | F23: OK | G23: 0.02 | H23: 0.035 | I23: 0.05
A24: 4) CPRB | B24: 1 | C24: 0 | D24: =C24 -> 0 | F24: FORA DO INTERVALO | G24: 0.045 | H24: 0.045 | I24: 0.045
A25: 5) Administração Central | B25: 1 | C25: 0.03 | D25: 0.03 | F25: OK | G25: 0.03 | H25: 0.04 | I25: 0.055
A26: 6) Despesas Financeiras | B26: 1 | C26: 0.0056 | D26: 0.0056 | F26: FORA DO INTERVALO | G26: 0.0059 | H26: 0.0123 | I26: 0.0139
A27: 7) Seguros + Garantias | B27: 1 | C27: 0.0012 | D27: 0.0012 | F27: FORA DO INTERVALO | G27: 0.008 | H27: 0.008 | I27: 0.01
A28: 8) Risco | B28: 1 | C28: 0.0097 | D28: 0.0097 | F28: OK | G28: 0.0097 | H28: 0.0127 | I28: 0.0127
A29: 9) Lucro | B29: 1 | C29: 0.0616 | D29: 0.0616 | F29: OK | G29: 0.0616 | H29: 0.074 | I29: 0.0896
A30: BDI - FINAL | D30: =(((1+D25+D27+D28)*(1+D26)*(1+D29))/(1-(D21+D22+D23+D24))-1) -> 0.2164286249 | F30: =IF(OR(D30<G30,D30>I30),"FORA DO INTERVALO","OK") -> OK | G30: 0.2034 | H30: 0.2212 | I30: 0.25
A32: Notas:
A33: (1) e (2) Alíquota definida por lei.
A34: (3) Alíquota e base de cálculo definidas pela legislação municipal.
A35: (4) Alíquota definida pelas leis 12.546/11, 12844/13 e 13.161/15 (CPRB – contribuição previdenciária sobre a receita bruta).
A36: (5) Valores definidos a partir dos limites no Acórdão nº 2.622/2013 - TCU – Plenário. Valores entre o 1º e 3º quartis.
A37: (6) Valor calculado pela expressão matemática do acórdão 2.369/2011 – TCU – Plenário e disponibilizado pela AGETOP em dezembro de 2018. (Foi utilizado para o cálculo a média da Taxa SELIC no período de 11/2017 a 10/2018)
A39: (7) Valores definidos pela AGETOP a partir dos limites no Acórdão nº 2.622/2013 - TCU – Plenário. Valores médios. Observação da AGETOP: (Seguros contra erros de execução, incêndio e explosão, danos da natureza (vendaval, destelhamento, alagamento, inundação, desmoronamento, geadas etc.), emprego de material defeituoso ou inadequado, roubo e/ou furto qualificado, quebra de equipamentos, desmoronamento de estrutura, nas modalidades de Obras Civis em Construção (OCC); Instalação e Montagem (IM); e Obras Civis em Construção e Instalação e Montagem (OCC/IM). Bem como coberturas adicionais para ampliação dessas coberturas básicas, como: cobertura de responsabilidade civil geral, cobertura de responsabilidade civil cruzada, cobertura de despesas extraordinárias, cobertura de tumultos, cobertura de desentulho do local, cobertura de riscos do fabricante, dentre outras, incluindo o seguro de vida em grupo regido pela convenção coletiva dos trabalhadores na indústria da construção civil). A partir de 24/02/2015 por intermédio da Portaria 449/2015 a Presidência da AGETOP, na pessoa do Senhor Jayme Eduardo Rincon, determinou a exclusão dos valores referentes aos Seguros de Risco de Engenharia e Responsabilidade Civil do Profissional na composição do cálculo do B.D.I..
A40: (8) Valores definidos a partir dos limites no Acórdão nº 2.622/2013 - TCU – Plenário. Valores entre 1º e 3° quartis.
A41: (9) Valores definidos a partir dos limites definidos no Acórdão nº 2.622/2013 - TCU – Plenário. Valores adotados e praticados no mercado ( “ ex ante ” ) ou aqueles entre os 1º e 3º quartis.
A43: (*) A fórmula para estipulação da taxa de BDI estimado adotado é a mesma que foi aplicada para a obtenção das tabelas contidas no Acórdão n. 2.622/2013 – TCUPlenário
A45: Obs.: Para obras com valores superiores a R$ 20.000.000,00 sugere-se recalcular o BDI, dimensionando as taxas de administração central e lucro para patamares inferiores ao estipulado acima.

Sheet Relatório CENTRAL
B3: UNIDADE ESCOLAR | D3: CIDADE
B4: =Orçamento!$O$4 -> COLÉGIO ESTADUAL DA POLÍCIA MILITAR DE GOIÁS - GOIANIRA - JOSÉ SILVA OLIVEIRA | D4: =Orçamento!$V$7 -> GOIANIRA
B6: OBRA | D6: CRE
B7: =Orçamento!$O$7 -> REFORMA E AMPLIAÇÃO | D7: =Orçamento!$O$10 -> INHUMAS
B9: ENDEREÇO | D9: DATA
A10: FILTRO | B10: =Orçamento!$R$10 -> Rua 28 c/ Rua 20 S/N, TRIUNFO I, CEP:75370-000 | D10: =Orçamento!$S$7 -> 2019-05-21
B12: RELATÓRIO CENTRAL
A13: ↓ | B13: CÓDIGO | C13: ETAPA | D13: PREÇO (R$) C/ BDI | E13: PARTIC ( % )
A14: =IF(D14>0,"F","") ->  | B14: =Orçamento!O540 -> a. | C14: =Orçamento!P540 -> SERVIÇOS PRELIMINARES | D14: =Orçamento!V540 -> 0 | E14: =Orçamento!X540 -> 0
A15: =IF(D15>0,"F","") ->  | B15: =Orçamento!O541 -> b. | C15: =Orçamento!P541 -> TRANSPORTES | D15: =Orçamento!V541 -> 0 | E15: =Orçamento!X541 -> 0
B16: =Orçamento!O542 -> c. | C16: =Orçamento!P542 -> SERVIÇO EM TERRA | D16: =Orçamento!V542 -> 0 | E16: =Orçamento!X542 -> 0
B17: =Orçamento!O543 -> d. | C17: =Orçamento!P543 -> FUNDAÇÕES E SONDAGENS | D17: =Orçamento!V543 -> 0 | E17: =Orçamento!X543 -> 0
B18: =Orçamento!O544 -> e. | C18: =Orçamento!P544 -> ESTRUTURA | D18: =Orçamento!V544 -> 0 | E18: =Orçamento!X544 -> 0
B19: =Orçamento!O545 -> f. | C19: =Orçamento!P545 -> INSTALAÇÕES ELÉTRICAS | D19: =Orçamento!V545 -> 0 | E19: =Orçamento!X545 -> 0
B20: =Orçamento!O546 -> g. | C20: =Orçamento!P546 -> INSTALAÇÕES HIDROSSANITÁRIAS | D20: =Orçamento!V546 -> 0 | E20: =Orçamento!X546 -> 0
B21: =Orçamento!O547 -> h | C21: =Orçamento!P547 -> INSTALAÇÕES ESPECIAIS | D21: =Orçamento!V547 -> 0 | E21: =Orçamento!X547 -> 0
B22: =Orçamento!O548 -> i. | C22: =Orçamento!P548 -> ALVENARIAS E DIVISÓRIAS | D22: =Orçamento!V548 -> 0 | E22: =Orçamento!X548 -> 0
B23: =Orçamento!O549 -> j. | C23: =Orçamento!P549 -> ALVENARIA AUTO-PORTANTE | D23: =Orçamento!V549 -> 0 | E23: =Orçamento!X549 -> 0
B24: =Orçamento!O550 -> k. | C24: =Orçamento!P550 -> IMPERMEABILIZAÇÃO | D24: =Orçamento!V550 -> 0 | E24: =Orçamento!X550 -> 0
B25: =Orçamento!O551 -> l. | C25: =Orçamento!P551 -> ISOLAMENTO TÉRMICO E ACÚSTICO | D25: =Orçamento!V551 -> 0 | E25: =Orçamento!X551 -> 0
B26: =Orçamento!O552 -> m. | C26: =Orçamento!P552 -> ESTRUTURA DE MADEIRA | D26: =Orçamento!V552 -> 0 | E26: =Orçamento!X552 -> 0
B27: =Orçamento!O553 -> n. | C27: =Orçamento!P553 -> ESTRUTURAS METÁLICAS | D27: =Orçamento!V553 -> 0 | E27: =Orçamento!X553 -> 0
B28: =Orçamento!O554 -> o. | C28: =Orçamento!P554 -> COBERTURAS | D28: =Orçamento!V554 -> 0 | E28: =Orçamento!X554 -> 0
B29: =Orçamento!O555 -> p. | C29: =Orçamento!P555 -> ESQUADRIAS DE MADEIRA | D29: =Orçamento!V555 -> 0 | E29: =Orçamento!X555 -> 0
B30: =Orçamento!O556 -> q. | C30: =Orçamento!P556 -> ESQUADRIAS METÁLICAS | D30: =Orçamento!V556 -> 0 | E30: =Orçamento!X556 -> 0
B31: =Orçamento!O557 -> r. | C31: =Orçamento!P557 -> VIDROS | D31: =Orçamento!V557 -> 0 | E31: =Orçamento!X557 -> 0
B32: =Orçamento!O558 -> s. | C32: =Orçamento!P558 -> REVESTIMENTO DE PAREDE | D32: =Orçamento!V558 -> 0 | E32: =Orçamento!X558 -> 0
B33: =Orçamento!O559 -> t. | C33: =Orçamento!P559 -> FORROS | D33: =Orçamento!V559 -> 0 | E33: =Orçamento!X559 -> 0
B34: =Orçamento!O560 -> u. | C34: =Orçamento!P560 -> REVESTIMENTO DE PISO | D34: =Orçamento!V560 -> 0 | E34: =Orçamento!X560 -> 0
B35: =Orçamento!O561 -> v. | C35: =Orçamento!P561 -> FERRAGENS | D35: =Orçamento!V561 -> 0 | E35: =Orçamento!X561 -> 0
B36: =Orçamento!O562 -> w. | C36: =Orçamento!P562 -> MARCENARIA | D36: =Orçamento!V562 -> 0 | E36: =Orçamento!X562 -> 0
B37: =Orçamento!O563 -> x. | C37: =Orçamento!P563 -> ADMINISTRAÇÃO | D37: =Orçamento!V563 -> 0 | E37: =Orçamento!X563 -> 0
B38: =Orçamento!O564 -> y. | C38: =Orçamento!P564 -> PINTURA | D38: =Orçamento!V564 -> 0 | E38: =Orçamento!X564 -> 0
B39: =Orçamento!O565 -> z. | C39: =Orçamento!P565 -> DIVERSOS | D39: =Orçamento!V565 -> 0 | E39: =Orçamento!X565 -> 0
A40: F | B40: TOTAL GERAL DO ORÇAMENTO (R$) C/BDI | D40: =SUM(D14:D39) -> 0 | E40: =SUM(E14:E39) -> 0

Sheet Parc Maior Relev
B3: UNIDADE ESCOLAR | E3: CÓDIGO INEP
B4: =Orçamento!$O$4 -> COLÉGIO ESTADUAL DA POLÍCIA MILITAR DE GOIÁS - GOIANIRA - JOSÉ SILVA OLIVEIRA | E4: =Orçamento!$V$4 -> 52096939
B6: OBRA | E6: CIDADE
B7: =Orçamento!$O$7 -> REFORMA E AMPLIAÇÃO | E7: =Orçamento!$V$7 -> GOIANIRA
B9: CRE | E9: ÁREA TOTAL CONSTRUÍDA (M²)
B10: =Orçamento!$O$10 -> INHUMAS | E10: =Orçamento!$S$13 -> 3204.22
A11: FILTRO
B12: PARCELA DE MAIOR RELEVÂNCIA
B13: CÓDIGO | C13: SERVIÇO | D13: DESCRIÇÃO | E13: UNID | F13: QUANT | G13: PARC. MAIOR RELEV (50%)
A14: =IF(F14>0,"F","") -> F | B14: U. | C14: =IFERROR(VLOOKUP(B14,Orçamento!$O$540:$P$565,2,FALSE),"(inserir código ao lado)") -> REVESTIMENTO DE PISO | D14: PISO EM GRANITINA | E14: m2 | F14: 434.58 | G14: =F14/2 -> 217.29
A15: =IF(F15>0,"F","") -> F | B15: O. | C15: =IFERROR(VLOOKUP(B15,Orçamento!$O$540:$P$565,2,FALSE),"(inserir código ao lado)") -> COBERTURAS | D15: COBERTURA CERÂMICA | E15: m2 | F15: 560.07 | G15: =F15/2 -> 280.035
A16: =IF(F16>0,"F","") ->  | C16: =IFERROR(VLOOKUP(B16,Orçamento!$O$540:$P$565,2,FALSE),"(inserir código ao lado)") -> (inserir código ao lado) | E16: =IFERROR(VLOOKUP($D16,Orçamento!$R$20:$W$521,2,FALSE),"-") -> - | F16: =SUMIF(Orçamento!$R$20:$R$521,'Parc Maior Relev'!D16,Orçamento!$T$20:$T$521) -> 0 | G16: =F16*0.5 -> 0
C17: =IFERROR(VLOOKUP(B17,Orçamento!$O$540:$P$565,2,FALSE),"(inserir código ao lado)") -> (inserir código ao lado) | E17: =IFERROR(VLOOKUP($D17,Orçamento!$R$20:$W$521,2,FALSE),"-") -> - | F17: =SUMIF(Orçamento!$R$20:$R$521,'Parc Maior Relev'!D17,Orçamento!$T$20:$T$521) -> 0 | G17: =F17*0.5 -> 0
A18: F
A19: F | B19: (*) Para os fins do inciso I dp § 1º do Art. 30 da Lei Federal 8.666/93, são consideradas parcelas de maior relevância técnica as execuções apresentadas
A20: F

Sheet Composições
A4: UNIDADE ESCOLAR | H4: CÓDIGO INEP
A5: =Orçamento!$O$4 -> COLÉGIO ESTADUAL DA POLÍCIA MILITAR DE GOIÁS - GOIANIRA - JOSÉ SILVA OLIVEIRA | H5: =Orçamento!$V$4 -> 52096939
A7: OBRA | H7: CIDADE
A8: =Orçamento!$O$7 -> REFORMA E AMPLIAÇÃO | H8: =Orçamento!$V$7 -> GOIANIRA
A10: CRE | D10: ENDEREÇO | H10: REFERÊNCIA AGETOP
A11: =Orçamento!$O$10 -> INHUMAS | D11: =Orçamento!$R$10 -> Rua 28 c/ Rua 20 S/N, TRIUNFO I, CEP:75370-000 | H11: =Orçamento!$V$10 -> DEZ/18 | I11: =Orçamento!$W$10 -> ONERADA
A13: DATA | D13: ÁREA TOTAL CONSTRUÍDA (M²) | H13: REFERÊNCIA SINAPI
A14: =Orçamento!$S$7 -> 2019-05-21 | D14: =Orçamento!$S$13 -> 3204.22 | H14: =Orçamento!$V$13 -> MAR/19 | I14: =Orçamento!$W$13 -> ONERADA
A16: COMPOSIÇÕES DE CUSTOS UNITÁRIOS - SEE-GO
A17: 17 | B17: FONTE | C17: CÓDIGO | D17: DESCRIÇÃO | E17: UNIDADE | F17: COEFIC. | G17: CUSTO UNITÁRIO | I17: CUSTO TOTAL (A) + (B) + (C) + (D) + (E)
G18: DESONERADO | H18: NÃO DESONER. | I18: DESONERADO | J18: NÃO DESONER.
B19: COMPOSIÇÃO | C19: COMP 017_SEE | D19: REDUCAO GIRATÓRIA TIPO STORZ LATAO P/ INST. PREDIAL COMBATE A INCENDIO ENGATE RAPIDO 2.1/2" X 1.1/2" | E19: UN | G19: - | H19: - | I19: 94.15 | J19: 94.7
B20: AGETOP_I | C20: 8 | D20: AJUDANTE | E20: h | F20: 0.16 | G20: 8.2 | H20: 9.51 | I20: 1.31 | J20: 1.52
B21: AGETOP_I | C21: 11 | D21: ENCANADOR | E21: h | F21: 0.16 | G21: 13.4 | H21: 15.53 | I21: 2.14 | J21: 2.48
B22: MÃO DE OBRA (B) - TOTAL | I22: 3.45 | J22: 4
B23: SINAPI_I | C23: 20972 | D23: REDUCAO FIXA TIPO STORZ, ENGATE RAPIDO 2.1/2" X 1.1/2", EM LATAO, PARA INSTALACAO PREDIAL COMBATE A INCENDIO PREDIAL | E23: UN | F23: 1 | G23: 90.7 | H23: 90.7 | I23: 90.7 | J23: 90.7
B24: MATERIAL (C) - TOTAL | I24: 90.7 | J24: 90.7
A26: 18 | B26: FONTE | C26: CÓDIGO | D26: DESCRIÇÃO | E26: UNIDADE | F26: COEFIC. | G26: CUSTO UNITÁRIO | I26: CUSTO TOTAL (A) + (B) + (C) + (D) + (E)
G27: DESONERADO | H27: NÃO DESONER. | I27: DESONERADO | J27: NÃO DESONER.
B28: COMPOSIÇÃO | C28: COMP 018_SEE | D28: CHAVE DUPLA P/ CONEXÕES TIPO STORZ EM LATÃO ENGATE RÁPIDO 1 1/2" X 2 1/2" | E28: UN | G28: - | H28: - | I28: 14.1 | J28: 14.42
B29: AGETOP_I | C29: 11 | D29: ENCANADOR | E29: h | F29: 0.15 | G29: 13.4 | H29: 15.53 | I29: 2.01 | J29: 2.33
B30: MÃO DE OBRA (B) - TOTAL | I30: 2.01 | J30: 2.33
B31: SINAPI_I | C31: 20971 | D31: CHAVE DUPLA PARA CONEXOES TIPO STORZ, ENGATE RAPIDO 1 1/2" X 2 1/2", EM LATAO, PARA INSTALACAO PREDIAL COMBATE A INCENDIO | E31: UN | F31: 1 | G31: 12.09 | H31: 12.09 | I31: 12.09 | J31: 12.09
B32: MATERIAL (C) - TOTAL | I32: 12.09 | J32: 12.09
A34: 87 | B34: FONTE | C34: CÓDIGO | D34: DESCRIÇÃO | E34: UNIDADE | F34: COEFIC. | G34: CUSTO UNITÁRIO | I34: CUSTO TOTAL (A) + (B) + (C) + (D) + (E)
G35: DESONERADO | H35: NÃO DESONER. | I35: DESONERADO | J35: NÃO DESONER.
B36: COMPOSIÇÃO | C36: COMP 087_SEE | D36: REGISTRO DE GAVETA COM HASTE ASCENDENTE DE BRONZE 2 1/2" | E36: UN | I36: 257.3 | J36: 261.26
B37: AGETOP_I | C37: 8 | D37: AJUDANTE | E37: h | F37: 1.15 | G37: 8.2 | H37: 9.51 | I37: 9.43 | J37: 10.94
B38: AGETOP_I | C38: 11 | D38: ENCANADOR | E38: h | F38: 1.15 | G38: 13.4 | H38: 15.53 | I38: 15.41 | J38: 17.86
G39: 0 | H39: 0 | I39: 0 | J39: 0
B40: MÃO DE OBRA (B) - TOTAL | I40: 24.84 | J40: 28.8
B41: AGETOP_I | C41: H689 | D41: FITA VEDAROSCA 12 MM | E41: m | F41: 2.82 | G41: 0.28 | H41: 0.28 | I41: 0.79 | J41: 0.79
B42: COTAÇÃO | C42: COT 017_SEE | D42: REGISTRO DE GAVETA COM HASTE ASCENDENTE DE BRONZE 2 1/2" | E42: UN | F42: 1 | G42: 231.6666667 | H42: 231.6666667 | I42: 231.67 | J42: 231.67
G43: 0 | H43: 0 | I43: 0 | J43: 0
B44: MATERIAL (C) - TOTAL | I44: 232.46 | J44: 232.46
A46: 19 | B46: FONTE | C46: CÓDIGO | D46: DESCRIÇÃO | E46: UNIDADE | F46: COEFIC. | G46: CUSTO UNITÁRIO | I46: CUSTO TOTAL (A) + (B) + (C) + (D) + (E)
G47: DESONERADO | H47: NÃO DESONER. | I47: DESONERADO | J47: NÃO DESONER.
B48: COMPOSIÇÃO | C48: COMP 019_SEE | D48: TAMPÃO LATAO C/ CORRENTE P/ INSTALAÇÃO PREDIAL COMBATE A INCÊNDIO ENGATE RÁPIDO 1 1/2" | E48: UN | G48: - | H48: - | I48: 52.82 | J48: 53.34
B49: AGETOP_I | C49: 11 | D49: ENCANADOR | E49: h | F49: 0.15 | G49: 13.4 | H49: 15.53 | I49: 2.01 | J49: 2.33
B50: AGETOP_I | C50: 8 | D50: AJUDANTE | E50: h | F50: 0.15 | G50: 8.2 | H50: 9.51 | I50: 1.23 | J50: 1.43
G51: 0 | H51: 0 | I51: 0 | J51: 0
B52: MÃO DE OBRA (B) - TOTAL | I52: 3.24 | J52: 3.76
B53: SINAPI_I | C53: 20964 | D53: TAMPAO COM CORRENTE, EM LATAO, ENGATE RAPIDO 1 1/2", PARA INSTALACAO PREDIAL DE COMBATE A INCENDIO | E53: UN | F53: 1 | G53: 49.58 | H53: 49.58 | I53: 49.58 | J53: 49.58
G54: 0 | H54: 0 | I54: 0 | J54: 0
G55: 0 | H55: 0 | I55: 0 | J55: 0
B56: MATERIAL (C) - TOTAL | I56: 49.58 | J56: 49.58
A58: 30 | B58: FONTE | C58: CÓDIGO | D58: DESCRIÇÃO | E58: UNIDADE | F58: COEFIC. | G58: CUSTO UNITÁRIO | I58: CUSTO TOTAL (A) + (B) + (C) + (D) + (E)
G59: DESONERADO | H59: NÃO DESONER. | I59: DESONERADO | J59: NÃO DESONER.
B60: COMPOSIÇÃO | C60: COMP 030_SEE | D60: COTOVELO DE FERRO GALV. 90° X 2 1/2" | E60: UN | I60: 68.89 | J60: 72.06
B61: AGETOP_I | C61: 8 | D61: AJUDANTE | E61: h | F61: 0.92 | G61: 8.2 | H61: 9.51 | I61: 7.54 | J61: 8.75
B62: AGETOP_I | C62: 11 | D62: ENCANADOR | E62: h | F62: 0.92 | G62: 13.4 | H62: 15.53 | I62: 12.33 | J62: 14.29
B63: MÃO DE OBRA (B) - TOTAL | I63: 19.87 | J63: 23.04
B64: SINAPI_I | C64: 3470 | D64: COTOVELO 90 GRAUS DE FERRO GALVANIZADO, COM ROSCA BSP, DE 2 1/2" | E64: UN | F64: 1 | G64: 48.46 | H64: 48.46 | I64: 48.46 | J64: 48.46
B65: AGETOP_I | C65: H689 | D65: FITA VEDAROSCA 12 MM | E65: m | F65: 2 | G65: 0.28 | H65: 0.28 | I65: 0.56 | J65: 0.56
B66: MATERIAL (C) - TOTAL | I66: 49.02 | J66: 49.02
A68: 77 | B68: FONTE | C68: CÓDIGO | D68: DESCRIÇÃO | E68: UNIDADE | F68: COEFIC. | G68: CUSTO UNITÁRIO | I68: CUSTO TOTAL (A) + (B) + (C) + (D) + (E)
G69: DESONERADO | H69: NÃO DESONER. | I69: DESONERADO | J69: NÃO DESONER.
B70: COMPOSIÇÃO | C70: COMP 077_SEE | D70: UNIAO FERRO GALV C/ASSENTO CONICO BRONZE 2 1/2" | E70: UN | I70: 147.52 | J70: 148.89
B71: AGETOP_I | C71: 8 | D71: AJUDANTE | E71: h | F71: 0.4 | G71: 8.2 | H71: 9.51 | I71: 3.28 | J71: 3.8
B72: AGETOP_I | C72: 11 | D72: ENCANADOR | E72: h | F72: 0.4 | G72: 13.4 | H72: 15.53 | I72: 5.36 | J72: 6.21
B73: MÃO DE OBRA (B) - TOTAL | I73: 8.64 | J73: 10.01
B74: AGETOP_I | C74: H689 | D74: FITA VEDAROSCA 12 MM | E74: m | F74: 2.4 | G74: 0.28 | H74: 0.28 | I74: 0.67 | J74: 0.67
B75: SINAPI_I | C75: 12427 | D75: UNIAO COM ASSENTO CONICO DE BRONZE, DIAMETRO 2 1/2" | E75: UN | F75: 1 | G75: 138.21 | H75: 138.21 | I75: 138.21 | J75: 138.21
B76: MATERIAL (C) - TOTAL | I76: 138.88 | J76: 138.88
A78: 76 | B78: FONTE | C78: CÓDIGO | D78: DESCRIÇÃO | E78: UNIDADE | F78: COEFIC. | G78: CUSTO UNITÁRIO | I78: CUSTO TOTAL (A) + (B) + (C) + (D) + (E)
G79: DESONERADO | H79: NÃO DESONER. | I79: DESONERADO | J79: NÃO DESONER.
B80: COMPOSIÇÃO | C80: COMP 076_SEE | D80: CURVA FERRO GALVANIZADO 45G ROSCA MACHO/FEMEA REF. 2 1/2" | E80: UN | I80: 116.11 | J80: 119.28
B81: AGETOP_I | C81: 8 | D81: AJUDANTE | E81: h | F81: 0.92 | G81: 8.2 | H81: 9.51 | I81: 7.54 | J81: 8.75
B82: AGETOP_I | C82: 11 | D82: ENCANADOR | E82: h | F82: 0.92 | G82: 13.4 | H82: 15.53 | I82: 12.33 | J82: 14.29
B83: MÃO DE OBRA (B) - TOTAL | I83: 19.87 | J83: 23.04
B84: SINAPI_I | C84: 3148 | D84: FITA VEDA ROSCA EM ROLOS DE 18 MM X 50 M (L X C) | E84: UN | F84: 0.0491 | G84: 12.9 | H84: 12.9 | I84: 0.63 | J84: 0.63
B85: SINAPI_I | C85: 1784 | D85: CURVA 45 GRAUS DE FERRO GALVANIZADO, COM ROSCA BSP MACHO/FEMEA, DE 2 1/2" | E85: UN | F85: 1 | G85: 95.61 | H85: 95.61 | I85: 95.61 | J85: 95.61
B86: MATERIAL (C) - TOTAL | I86: 96.24 | J86: 96.24
A88: 22 | B88: FONTE | C88: CÓDIGO | D88: DESCRIÇÃO | E88: UNIDADE | F88: COEFIC. | G88: CUSTO UNITÁRIO | I88: CUSTO TOTAL (A) + (B) + (C) + (D) + (E)
G89: DESONERADO | H89: NÃO DESONER. | I89: DESONERADO | J89: NÃO DESONER.
B90: COMPOSIÇÃO | C90: COMP 022_SEE | D90: TAMPÃO FOFO 40X50CM C/INSCRIÇÃO | E90: UN | G90: - | H90: - | I90: 216.53 | J90: 216.85
B91: AGETOP_I | C91: 11 | D91: ENCANADOR | E91: h | F91: 0.15 | G91: 13.4 | H91: 15.53 | I91: 2.01 | J91: 2.33
G92: 0 | H92: 0 | I92: 0 | J92: 0
G93: 0 | H93: 0 | I93: 0 | J93: 0
B94: MÃO DE OBRA (B) - TOTAL | I94: 2.01 | J94: 2.33
B95: SINAPI_I | C95: 11293 | D95: TAMPAO FOFO SIMPLES COM BASE, CLASSE A15 CARGA MAX 1,5 T, 400 X 500 MM, COM INSCRICAO INCENDIO | E95: UN | F95: 1 | G95: 214.52 | H95: 214.52 | I95: 214.52 | J95: 214.52
G96: 0 | H96: 0 | I96: 0 | J96: 0
G97: 0 | H97: 0 | I97: 0 | J97: 0
B98: MATERIAL (C) - TOTAL | I98: 214.52 | J98: 214.52
A100: 24 | B100: FONTE | C100: CÓDIGO | D100: DESCRIÇÃO | E100: UNIDADE | F100: COEFIC. | G100: CUSTO UNITÁRIO | I100: CUSTO TOTAL (A) + (B) + (C) + (D) + (E)
G101: DESONERADO | H101: NÃO DESONER. | I101: DESONERADO | J101: NÃO DESONER.
B102: COMPOSIÇÃO | C102: COMP 024_SEE | D102: SINALIZADOR FOTOLUMINESCENTE PARA EXTINTOR | E102: UN | G102: - | H102: - | I102: 25.27 | J102: 25.39
B103: AGETOP_I | C103: 5 | D103: SERVENTE | E103: h | F103: 0.09 | G103: 8.2 | H103: 9.51 | I103: 0.74 | J103: 0.86
G104: 0 | H104: 0 | I104: 0 | J104: 0
G105: 0 | H105: 0 | I105: 0 | J105: 0
B106: MÃO DE OBRA (B) - TOTAL | I106: 0.74 | J106: 0.86
B107: AGETOP_I | C107: 3070 | D107: BUCHA DE NYLON S-6 | E107: un | F107: 2 | G107: 0.04 | H107: 0.04 | I107: 0.08 | J107: 0.08
B108: AGETOP_I | C108: 3393 | D108: PARAFUSO P/BUCHA S-6 | E108: un | F108: 2 | G108: 0.08 | H108: 0.08 | I108: 0.16 | J108: 0.16
B109: SINAPI_I | C109: 37556 | D109: PLACA DE SINALIZACAO DE SEGURANCA CONTRA INCENDIO, FOTOLUMINESCENTE, QUADRADA, *20 X 20* CM, EM PVC *2* MM ANTI-CHAMAS (SIMBOLOS, CORES E PICTOGRAMAS CONFORME NBR 13434) | E109: UN | F109: 1 | G109: 24.29 | H109: 24.29 | I109: 24.29 | J109: 24.29
B110: MATERIAL (C) - TOTAL | I110: 24.53 | J110: 24.53
A112: 186 | B112: FONTE | C112: CÓDIGO | D112: DESCRIÇÃO | E112: UNIDADE | F112: COEFIC. | G112: CUSTO UNITÁRIO | I112: CUSTO TOTAL (A) + (B) + (C) + (D) + (E)
G113: DESONERADO | H113: NÃO DESONER. | I113: DESONERADO | J113: NÃO DESONER.
B114: COMPOSIÇÃO | C114: COMP 186_SEE | D114: BOTOEIRA BOMBA DE INCÊNDIO C/ MARTELO CONVENCIONAL/ ANALÓGICA | E114: UN | I114: 85.1 | J114: 88.54
B115: AGETOP_I | C115: 8 | D115: AJUDANTE | E115: h | F115: 1 | G115: 8.2 | H115: 9.51 | I115: 8.2 | J115: 9.51
B116: AGETOP_I | C116: 12 | D116: ELETRICISTA | E116: h | F116: 1 | G116: 13.4 | H116: 15.53 | I116: 13.4 | J116: 15.53
G117: 0 | H117: 0 | I117: 0 | J117: 0
B118: MÃO DE OBRA (B) - TOTAL | I118: 21.6 | J118: 25.04
B119: COTAÇÃO | C119: COT 088_SEE | D119: BOTOEIRA BOMBA DE INCÊNDIO C/ MARTELO CONVENCIONAL/ ANALÓGICA | E119: UN | F119: 1 | G119: 63.5 | H119: 63.5 | I119: 63.5 | J119: 63.5
G120: 0 | H120: 0 | I120: 0 | J120: 0
G121: 0 | H121: 0 | I121: 0 | J121: 0
B122: MATERIAL (C) - TOTAL | I122: 63.5 | J122: 63.5
A124: 188 | B124: FONTE | C124: CÓDIGO | D124: DESCRIÇÃO | E124: UNIDADE | F124: COEFIC. | G124: CUSTO UNITÁRIO | I124: CUSTO TOTAL (A) + (B) + (C) + (D) + (E)
G125: DESONERADO | H125: NÃO DESONER. | I125: DESONERADO | J125: NÃO DESONER.
B126: COMPOSIÇÃO | C126: COMP 188_SEE | D126: ACIONADOR MANUAL DE ALARME | E126: UN | I126: 100.61 | J126: 103.36
B127: AGETOP_I | C127: 8 | D127: AJUDANTE | E127: h | F127: 0.8 | G127: 8.2 | H127: 9.51 | I127: 6.56 | J127: 7.61
B128: AGETOP_I | C128: 12 | D128: ELETRICISTA | E128: h | F128: 0.8 | G128: 13.4 | H128: 15.53 | I128: 10.72 | J128: 12.42
G129: 0 | H129: 0 | I129: 0 | J129: 0
B130: MÃO DE OBRA (B) - TOTAL | I130: 17.28 | J130: 20.03
B131: COTAÇÃO | C131: COT 090_SEE | D131: ACIONADOR MANUAL DE ALARME | E131: UN | F131: 1 | G131: 83.33333333 | H131: 83.33333333 | I131: 83.33 | J131: 83.33
G132: 0 | H132: 0 | I132: 0 | J132: 0
G133: 0 | H133: 0 | I133: 0 | J133: 0
B134: MATERIAL (C) - TOTAL | I134: 83.33 | J134: 83.33
A136: 190 | B136: FONTE | C136: CÓDIGO | D136: DESCRIÇÃO | E136: UNIDADE | F136: COEFIC. | G136: CUSTO UNITÁRIO | I136: CUSTO TOTAL (A) + (B) + (C) + (D) + (E)
G137: DESONERADO | H137: NÃO DESONER. | I137: DESONERADO | J137: NÃO DESONER.
B138: COMPOSIÇÃO | C138: COMP 190_SEE | D138: CENTRAL DE DETECÇÃO E ALARME DE 40 SETORES COM BATERIA | E138: UN | I138: 1136.13 | J138: 1163.65
B139: AGETOP_I | C139: 8 | D139: AJUDANTE | E139: h | F139: 8 | G139: 8.2 | H139: 9.51 | I139: 65.6 | J139: 76.08
B140: AGETOP_I | C140: 12 | D140: ELETRICISTA | E140: h | F140: 8 | G140: 13.4 | H140: 15.53 | I140: 107.2 | J140: 124.24
G141: 0 | H141: 0 | I141: 0 | J141: 0
B142: MÃO DE OBRA (B) - TOTAL | I142: 172.8 | J142: 200.32
B143: COTAÇÃO | C143: COT 092_SEE | D143: CENTRAL DE DETECÇÃO E ALARME DE 40 SETORES COM BATERIA (PREÇO MÉDIO) | E143: UN | F143: 1 | G143: 963.3333333 | H143: 963.3333333 | I143: 963.33 | J143: 963.33
G144: 0 | H144: 0 | I144: 0 | J144: 0
G145: 0 | H145: 0 | I145: 0 | J145: 0
B146: MATERIAL (C) - TOTAL | I146: 963.33 | J146: 963.33
A148: 25 | B148: FONTE | C148: CÓDIGO | D148: DESCRIÇÃO | E148: UNIDADE | F148: COEFIC. | G148: CUSTO UNITÁRIO | I148: CUSTO TOTAL (A) + (B) + (C) + (D) + (E)
G149: DESONERADO | H149: NÃO DESONER. | I149: DESONERADO | J149: NÃO DESONER.
B150: COMPOSIÇÃO | C150: COMP 025_SEE | D150: SINALIZADOR FOTOLUMINESCENTE DE EMERGÊNCIA | E150: UN | G150: - | H150: - | I150: 25.27 | J150: 25.39
B151: AGETOP_I | C151: 5 | D151: SERVENTE | E151: h | F151: 0.09 | G151: 8.2 | H151: 9.51 | I151: 0.74 | J151: 0.86
B152: MÃO DE OBRA (B) - TOTAL | I152: 0.74 | J152: 0.86
B153: AGETOP_I | C153: 3070 | D153: BUCHA DE NYLON S-6 | E153: un | F153: 2 | G153: 0.04 | H153: 0.04 | I153: 0.08 | J153: 0.08
B154: AGETOP_I | C154: 3393 | D154: PARAFUSO P/BUCHA S-6 | E154: un | F154: 2 | G154: 0.08 | H154: 0.08 | I154: 0.16 | J154: 0.16
B155: SINAPI_I | C155: 37556 | D155: PLACA DE SINALIZACAO DE SEGURANCA CONTRA INCENDIO, FOTOLUMINESCENTE, QUADRADA, *20 X 20* CM, EM PVC *2* MM ANTI-CHAMAS (SIMBOLOS, CORES E PICTOGRAMAS CONFORME NBR 13434) | E155: UN | F155: 1 | G155: 24.29 | H155: 24.29 | I155: 24.29 | J155: 24.29
B156: MATERIAL (C) - TOTAL | I156: 24.53 | J156: 24.53
A158: 277 | B158: FONTE | C158: CÓDIGO | D158: DESCRIÇÃO | E158: UNIDADE | F158: COEFIC. | G158: CUSTO UNITÁRIO | I158: CUSTO TOTAL (A) + (B) + (C) + (D) + (E)
G159: DESONERADO | H159: NÃO DESONER. | I159: DESONERADO | J159: NÃO DESONER.
B160: COMPOSIÇÃO | C160: COMP 277_SEE | D160: MARCAÇÃO NO PISO - 1X1 M PARA EXTINTOR | E160: M2 | I160: 27.72 | J160: 27.8
B161: AGETOP_I | C161: 5 | D161: SERVENTE | E161: h | F161: 0.0333 | G161: 8.2 | H161: 9.51 | I161: 0.27 | J161: 0.32
G162: 0 | H162: 0 | I162: 0 | J162: 0
G163: 0 | H163: 0 | I163: 0 | J163: 0
B164: MÃO DE OBRA (B) - TOTAL | I164: 0.27 | J164: 0.32
B165: SINAPI_I | C165: 5318 | D165: SOLVENTE DILUENTE A BASE DE AGUARRAS | E165: L | F165: 0.13 | G165: 10.98 | H165: 10.98 | I165: 1.43 | J165: 1.43
B166: SINAPI | C166: 5824 | D166: CAMINHÃO TOCO, PBT 16.000 KG, CARGA ÚTIL MÁX. 10.685 KG, DIST. ENTRE EIXOS 4,8 M, POTÊNCIA 189 CV, INCLUSIVE CARROCERIA FIXA ABERTA DE MADEIRA P/ TRANSPORTE GERAL DE CARGA SECA, DIMEN. APROX. 2,5 X 7,00 X 0,50 M - CHP DIURNO. AF_06/2014 | E166: CHP | F166: 0.0033 | G166: 135.92 | H166: 139.13 | I166: 0.45 | J166: 0.46
B167: SINAPI_I | C167: 7343 | D167: TINTA A BASE DE RESINA ACRILICA, PARA SINALIZACAO HORIZONTAL VIARIA (NBR 11862) | E167: L | F167: 0.6 | G167: 11.69 | H167: 11.69 | I167: 7.01 | J167: 7.01
B168: SINAPI_I | C168: 7348 | D168: TINTA ACRILICA PREMIUM PARA PISO | E168: L | F168: 0.03 | G168: 12.39 | H168: 12.39 | I168: 0.37 | J168: 0.37
B169: SINAPI_I | C169: 25972 | D169: MICROESFERAS DE VIDRO PARA SINALIZACAO HORIZONTAL VIARIA, TIPO I-B (PREMIX) - NBR 16184 | E169: KG | F169: 2.14 | G169: 8.33 | H169: 8.33 | I169: 17.83 | J169: 17.83
B170: SINAPI | C170: 95133 | D170: MÁQUINA DEMARCADORA DE FAIXA DE TRÁFEGO À FRIO, AUTOPROPELIDA, POTÊNCIA 38 HP - CHP DIURNO. AF_07/2016 | E170: CHP | F170: 0.0033 | G170: 110.07 | H170: 113.65 | I170: 0.36 | J170: 0.38
B171: MATERIAL (C) - TOTAL | I171: 27.45 | J171: 27.48
A173: 40 | B173: FONTE | C173: CÓDIGO | D173: DESCRIÇÃO | E173: UNIDADE | F173: COEFIC. | G173: CUSTO UNITÁRIO | I173: CUSTO TOTAL (A) + (B) + (C) + (D) + (E)
G174: DESONERADO | H174: NÃO DESONER. | I174: DESONERADO | J174: NÃO DESONER.
B175: COMPOSIÇÃO | C175: COMP 040_SEE | D175: CONJUNTO MOTOR-BOMBA ELÉTRICA TRIFÁSICO 380/220 V PARA VZ= 24,33 M³/H, HM= 46,24 M POTÊNCIA= 7,5 CV | E175: UN | I175: 3965.47 | J175: 3992.99
B176: AGETOP_I | C176: 8 | D176: AJUDANTE | E176: h | F176: 8 | G176: 8.2 | H176: 9.51 | I176: 65.6 | J176: 76.08
B177: AGETOP_I | C177: 11 | D177: ENCANADOR | E177: h | F177: 8 | G177: 13.4 | H177: 15.53 | I177: 107.2 | J177: 124.24
G178: 0 | H178: 0 | I178: 0 | J178: 0
B179: MÃO DE OBRA (B) - TOTAL | I179: 172.8 | J179: 200.32
B180: COTAÇÃO | C180: COT 008_SEE | D180: CONJUNTO MOTOR-BOMBA ELÉTRICA TRIFÁSICO 380/220 V PARA VZ= 24,33 M³/H, HM= 46,24 M POTÊNCIA= 7,5 CV | E180: UN | F180: 1 | G180: 3792.666667 | H180: 3792.666667 | I180: 3792.67 | J180: 3792.67
G181: 0 | H181: 0 | I181: 0 | J181: 0
G182: 0 | H182: 0 | I182: 0 | J182: 0
B183: MATERIAL (C) - TOTAL | I183: 3792.67 | J183: 3792.67
A185: 546 | B185: FONTE | C185: CÓDIGO | D185: DESCRIÇÃO | E185: UNID | F185: COEFIC. | G185: CUSTO UNITÁRIO | I185: CUSTO TOTAL (A) + (B) + (C) + (D) + (E)
G186: DESONERADO | H186: NÃO DESONER. | I186: DESONERADO | J186: NÃO DESONER.
B187: COMPOSIÇÃO | C187: COMP 546_SEE | D187: BUJÃO DE REBORDO 2.1/2" | E187: UN | F187: - | G187: - | H187: - | I187: 16.51 | J187: 16.76
B188: AGETOP_I | C188: 8 | D188: AJUDANTE | E188: h | F188: 0.07 | G188: 8.2 | H188: 9.51 | I188: 0.57 | J188: 0.67
B189: AGETOP_I | C189: 11 | D189: ENCANADOR | E189: h | F189: 0.07 | G189: 13.4 | H189: 15.53 | I189: 0.94 | J189: 1.09
G190: 0 | H190: 0 | I190: 0 | J190: 0
B191: MÃO DE OBRA (B) - TOTAL | I191: 1.51 | J191: 1.76
B192: COTAÇÃO | C192: COT 286_SEE | D192: BUJÃO DE REBORDO 2.1/2" | E192: UN | F192: 1 | G192: 15 | H192: 15 | I192: 15 | J192: 15
G193: 0 | H193: 0 | I193: 0 | J193: 0
G194: 0 | H194: 0 | I194: 0 | J194: 0
B195: MATERIAL (C) - TOTAL | I195: 15 | J195: 15
A197: 549 | B197: FONTE | C197: CÓDIGO | D197: DESCRIÇÃO | E197: UNID | F197: COEFIC. | G197: CUSTO UNITÁRIO | I197: CUSTO TOTAL (A) + (B) + (C) + (D) + (E)
G198: DESONERADO | H198: NÃO DESONER. | I198: DESONERADO | J198: NÃO DESONER.
B199: COMPOSIÇÃO | C199: COMP 549_SEE | D199: FLANGE GALVANIZADA 2.1/2" - FORNECIMENTO E INSTALAÇÃO | E199: UN | F199: - | G199: - | H199: - | I199: 160.33 | J199: 161.28
B200: SINAPI | C200: 88248 | D200: AUXILIAR DE ENCANADOR OU BOMBEIRO HIDRÁULICO COM ENCARGOS COMPLEMENTARES | E200: H | F200: 0.262 | G200: 13.72 | H200: 15.22 | I200: 3.59 | J200: 3.99
B201: SINAPI | C201: 88267 | D201: ENCANADOR OU BOMBEIRO HIDRÁULICO COM ENCARGOS COMPLEMENTARES | E201: H | F201: 0.262 | G201: 17.67 | H201: 19.78 | I201: 4.63 | J201: 5.18
G202: 0 | H202: 0 | I202: 0 | J202: 0
B203: MÃO DE OBRA (B) - TOTAL | I203: 8.22 | J203: 9.17
B204: SINAPI_I | C204: 3148 | D204: FITA VEDA ROSCA EM ROLOS DE 18 MM X 50 M (L X C) | E204: UN | F204: 0.013 | G204: 12.9 | H204: 12.9 | I204: 0.17 | J204: 0.17
B205: SINAPI_I | C205: 7307 | D205: FUNDO ANTICORROSIVO PARA METAIS FERROSOS (ZARCAO) | E205: L | F205: 0.002 | G205: 21.9 | H205: 21.9 | I205: 0.04 | J205: 0.04
B206: COTAÇÃO | C206: COT 291_SEE | D206: FLANGE GALVANIZADA 2.1/2" | E206: UN | F206: 1 | G206: 151.8966667 | H206: 151.8966667 | I206: 151.9 | J206: 151.9
B207: MATERIAL (C) - TOTAL | I207: 152.11 | J207: 152.11
A209: 84 | B209: FONTE | C209: CÓDIGO | D209: DESCRIÇÃO | E209: UNIDADE | F209: COEFIC. | G209: CUSTO UNITÁRIO | I209: CUSTO TOTAL (A) + (B) + (C) + (D) + (E)
G210: DESONERADO | H210: NÃO DESONER. | I210: DESONERADO | J210: NÃO DESONER.
B211: COMPOSIÇÃO | C211: COMP 084_SEE | D211: GUARDA-CORPO COM CORRIMÃO - SEDUC | E211: M | I211: 204.6 | J211: 209.46
B212: AGETOP_I | C212: 25 | D212: OFICIAL "B" | E212: h | F212: 1.1 | G212: 13.4 | H212: 15.53 | I212: 14.74 | J212: 17.08
B213: AGETOP_I | C213: 8 | D213: AJUDANTE | E213: h | F213: 1.1 | G213: 8.2 | H213: 9.51 | I213: 9.02 | J213: 10.46
G214: 0 | H214: 0 | I214: 0 | J214: 0
B215: MÃO DE OBRA (B) - TOTAL | I215: 23.76 | J215: 27.54
B216: AGETOP_I | C216: 2376 | D216: TUBO INDUSTRIAL 2" CHAPA 13 | E216: Kg | F216: 7.7778 | G216: 5.23 | H216: 5.23 | I216: 40.68 | J216: 40.68
B217: AGETOP_I | C217: 2504 | D217: TUBO INDUSTRIAL D=25 MM CHAPA 13 | E217: Kg | F217: 4.632 | G217: 5.07 | H217: 5.07 | I217: 23.48 | J217: 23.48
B218: AGETOP_I | C218: 2377 | D218: TUBO INDUSTRIAL 40X40 CH.13 | E218: Kg | F218: 6.342 | G218: 5.07 | H218: 5.07 | I218: 32.15 | J218: 32.15
B219: AGETOP_I | C219: 2421 | D219: TUBO INDUSTRIAL 1.1/2" CHAPA 13 | E219: Kg | F219: 1.4862 | G219: 5.07 | H219: 5.07 | I219: 7.54 | J219: 7.54
B220: AGETOP_I | C220: 2417 | D220: MASSA PLASTICA | E220: Kg | F220: 0.2041 | G220: 10.58 | H220: 10.58 | I220: 2.16 | J220: 2.16
B221: AGETOP_I | C221: 2246 | D221: ELETRODO 2.5 OK | E221: Kg | F221: 0.1146 | G221: 8.7 | H221: 8.7 | I221: 1 | J221: 1
B222: AGETOP_I | C222: 1672 | D222: LIXA PARA FERRO ( NÚMERO 100 ) | E222: un | F222: 0.2551 | G222: 2.12 | H222: 2.12 | I222: 0.54 | J222: 0.54
B223: AGETOP_I | C223: 1264 | D223: DISCO DE DESBASTE 7/8" P/ CONC./FERRO (1/4" X 7") | E223: un | F223: 0.051 | G223: 7 | H223: 7 | I223: 0.36 | J223: 0.36
B224: AGETOP_I | C224: 1334 | D224: DISCO DE CORTE DIAM. 5/8"- 10" | E224: un | F224: 0.373 | G224: 5.5 | H224: 5.5 | I224: 2.05 | J224: 2.05
... 105 more rows
